Cogmind - Beta 16.1 @@@ ROGUE MODE // 2026.04.05 @ 00:31:44 Player: Xintrosi Result: Destroyed self with Z-bomb Delivery System Performance ------------- Evolutions (8) 4000 Regions Visited (28) 5600 Robots Destroyed (426) 2130 Value Destroyed (21784) 21784 Prototype IDs (61) 1220 Alien Tech Used (6) 1200 Bonus (14826) 14826 TOTAL SCORE: 50760 Bonus ------- High Alert Combat Kills 8655 Follower Combat Kills 3177 Network Hubs Disabled 200 Registered with UFD 300 Met Optimus in HQ 500 Met Zhirov 300 Met Warlord at Base 500 MAIN.C Attacked Warlord 500 Warlord Defense Kills 1042 Built Enhanced Grunts 300 A7 Reached Mainframe 300 Met R17 at Cetus 500 Used Core Reset Matrix 3000 Met R17 at Research 2000 Met Optimus at Protoforge 1000 Friendly Fire -7448 Cogmind --------- Core Integrity 0/1450 Matter 840/1050 Energy 415/415 System Corruption 13% Temperature Cool (0) Movement Walking (103) Location -2/Protoforge Parts ------- > --- POWER (2) -------- Reinforced Antimatter Reactor Light Quantum Reactor > --- PROPULSION (6) --- Overtuned Flexi-carbon Leg Biometal Leg Enhanced Biometal Leg High-density Centrium Leg High-density Centrium Leg Experimental VSS Leg > --- UTILITY (11) ----- Scrap Suit Advanced Heat Sink High-capacity Storage Unit Concept NT7 Matterbank Experimental Targeting Computer Experimental Core Analyzer Centrium Medium Armor Plating SHELL Armor (fused) > --- WEAPON (4) ------- KE Penetrator Heavy Hardcell Cannon Z-bomb Delivery System > --- INVENTORY (20) --- Neutrino Core Micro Antimatter Reactor Experimental Cooling System Advanced Energy Well (500) Advanced Recoil Stabilizer Advanced Particle Accelerator Centrium Light Armor Plating SHELL Armor Improved Dynamic Insulation System Core Cannon Heavy Machine Gun KE Penetrator KE Penetrator Compact Linear Accelerator Peak State ------------ > --- POWER ------------ Light Quantum Reactor Improved Quantum Reactor > --- PROPULSION ------- Biometal Leg Biometal Leg Biometal Leg High-density Centrium Leg High-density Centrium Leg Experimental VSS Leg > --- UTILITY ---------- Advanced Heat Sink High-capacity Storage Unit Concept NT7 Matterbank Experimental Targeting Computer Core Analyzer Experimental Core Analyzer SHELL Armor Thermal Barrier Improved Dynamic Insulation System > --- WEAPON ----------- Nova Cannon Improved Matter Neutralizer Enhanced Nova Cannon Z-bomb Delivery System > --- INVENTORY -------- Neutrino Core Micro Antimatter Reactor Biometal Leg Experimental Cooling System Advanced Energy Well Advanced Recoil Stabilizer Advanced Particle Accelerator Centrium Medium Armor Plating SHELL Armor Matter Neutralizer Core Cannon KE Penetrator Heavy Hardcell Cannon Heavy Hardcell Cannon Compact Linear Accelerator [Rating: 212] Favorites ----------- Power Cooled Ion Engine Engine Cooled Ion Engine Power Core Neutrino Core Reactor Quantum Reactor Propulsion Enhanced Flexi-carbon Leg Treads Light Treads Leg Enhanced Flexi-carbon Leg Wheel Wheel Hover Unit Cooled Gravmag System Flight Unit Improved Flight Unit Utility Core Analyzer Device Advanced Heat Sink Storage Large Storage Unit Processor Core Analyzer Hackware Hacking Suite Protection Centrium Medium Armor Plating Artifact Phase Redirector Weapon Enhanced Autogun Energy Gun Advanced Variable Charge Gun Energy Cannon Matter Neutralizer Ballistic Gun Enhanced Autogun Ballistic Cannon Improved Light Cannon Launcher Z-bomb Delivery System Special Weapon Junk Cannon Impact Weapon Flail Slashing Weapon Phasing Sabre Build | -11 -10 -10 -9 -9 -8 -8 -8 -8 -6 -6 -6 -6 -6 -5 -5 -5 -5 -4 -4 -4 -4 -4 -3 -3 -3 -2 -2 -2 ------- Run | Yrd Mat Min Mat Min Mat Sto Rec Scr Fac Ext Cet Arc Hub Fac Upp Upp Zhi Pro Fac Upp Upp War Pro Res Qua Res Tes Frg Slots Evolved 16 | . . . 2 . 2 . . . 4 . . . . 2 . . . . 2 . . . . 2 . 2 . . Power 1 | . . . . . . . . . 1 . . . . . . . . . . . . . . . . . . . Propulsion 4 | . . . 1 . 1 . . . 1 . . . . . . . . . . . . . . 1 . . . . Utility 9 | . . . . . 1 . . . 2 . . . . 2 . . . . 2 . . . . 1 . 1 . . Weapon 2 | . . . 1 . . . . . . . . . . . . . . . . . . . . . . 1 . . Parts Attached 293 | 8 12 . 10 1 16 20 4 7 10 43 10 1 8 19 1 7 3 4 23 . 2 10 3 10 5 15 12 29 Power 34 | 1 1 . 1 . 1 1 . . 1 6 2 . . 1 . 4 . . 6 . . 1 . . . 2 1 5 Engine 14 | 1 1 . 1 . . 1 . . 1 6 . . . . . 3 . . . . . . . . . . . . Core 5 | . . . . . 1 . . . . . . . . 1 . 1 . . 1 . . . . . . . . 1 Reactor 15 | . . . . . . . . . . . 2 . . . . . . . 5 . . 1 . . . 2 1 4 Propulsion 85 | 2 3 . 2 . 8 9 3 4 2 17 3 . 2 3 . 3 1 1 5 . . 4 1 2 2 1 2 5 Treads 1 | . . . . . 1 . . . . . . . . . . . . . . . . . . . . . . . Leg 79 | 2 3 . 1 . 7 7 3 4 2 16 3 . 2 3 . 3 . 1 5 . . 4 1 2 2 1 2 5 Wheel 1 | . . . . . . . . . . 1 . . . . . . . . . . . . . . . . . . Hover 1 | . . . . . . . . . . . . . . . . . 1 . . . . . . . . . . . Flight 3 | . . . 1 . . 2 . . . . . . . . . . . . . . . . . . . . . . Utility 99 | 3 2 . 1 . 4 4 1 2 6 11 2 1 2 13 1 . 2 2 7 . . 4 1 5 2 6 4 13 Device 52 | 2 1 . . . 1 1 . 1 5 5 1 1 2 9 1 . . 1 4 . . 3 1 1 . 4 2 6 Storage 7 | 1 1 . 1 . 1 . . . . . . . . . . . 1 . 1 . . . . . . . . 1 Processor 14 | . . . . . 1 1 . . . 3 . . . 2 . . . . 1 . . . . 1 . 2 . 3 Hackware 2 | . . . . . . . . . . . . . . . . . . . . . . . . . . . 1 1 Protection 23 | . . . . . 1 2 1 1 1 3 1 . . 2 . . 1 1 1 . . 1 . 3 1 . 1 2 Artifact 1 | . . . . . . . . . . . . . . . . . . . . . . . . . 1 . . . Weapon 75 | 2 6 . 6 1 3 6 . 1 1 9 3 . 4 2 . . . 1 5 . 2 1 1 3 1 6 5 6 Energy Gun 12 | 1 . . . . . 4 . . . 1 1 . 1 . . . . 1 1 . . . . . . 1 1 . Energy Cannon 17 | . . . . . . 1 . . . 1 1 . 1 . . . . . 1 . 1 . . 2 1 5 2 1 Ballistic Gun 31 | 1 2 . 5 . 3 1 . . 1 6 1 . 2 2 . . . . 2 . . 1 . . . . . 4 Ballistic Cannon 8 | . 3 . 1 . . . . . . . . . . . . . . . 1 . . . . 1 . . 1 1 Launcher 4 | . . . . 1 . . . . . . . . . . . . . . . . 1 . 1 . . . 1 . Special Weapon 1 | . . . . . . . . 1 . . . . . . . . . . . . . . . . . . . . Impact Weapon 1 | . 1 . . . . . . . . . . . . . . . . . . . . . . . . . . . Slashing Weapon 1 | . . . . . . . . . . 1 . . . . . . . . . . . . . . . . . . Piercing Weapon . | . . . . . . . . . . . . . . . . . . . . . . . . . . . . . Special Melee Weapon . | . . . . . . . . . . . . . . . . . . . . . . . . . . . . . Unidentified Prototypes 48 | . . . 3 . 1 4 . 1 2 . 5 . . . . . 4 . 1 . . 5 1 1 3 2 7 8 Corrupted Parts 5 | . . . . . . . . . . . 1 . 3 1 . . . . . . . . . . . . . . System Corruption 12 | . . . . . . . . . . . 1 . 5 6 . . . . . . . . . . . . . . Parts Lost 65 | . 1 . . . 4 9 . . . 7 2 . . 2 1 1 . 2 8 . . . 1 . . 11 . 16 Power 10 | . . . . . . 1 . . . 2 2 . . . 1 . . . 1 . . . . . . 1 . 2 Propulsion 17 | . . . . . 1 4 . . . 2 . . . . . 1 . . 2 . . . . . . 3 . 4 Utility 26 | . . . . . 2 1 . . . 2 . . . 2 . . . 1 4 . . . 1 . . 6 . 7 Weapon 12 | . 1 . . . 1 3 . . . 1 . . . . . . . 1 1 . . . . . . 1 . 3 Highest Loss Streak 9 | . 1 . . . 2 8 . . . 2 1 . . 2 1 1 . 2 3 . . . 1 . . 9 . 4 To Critical Strikes 3 | . . . . . . . . . . . . . . . . . . . . . . . . . . 1 . 2 Average Backups 14 | 1 8 10 9 10 10 12 14 14 14 14 14 15 15 14 15 15 14 14 15 19 20 20 19 19 20 14 14 13 Power . | . 1 1 1 1 1 1 1 1 . . . . . . . . . . 1 2 2 2 1 1 1 . . 1 Propulsion 1 | . 1 2 2 4 4 4 6 4 1 . 1 1 1 1 1 . . . 1 . . . . . 1 . . . Utility 7 | . 2 3 2 2 1 4 5 7 9 8 9 9 9 7 8 8 9 9 8 10 11 11 12 11 10 7 7 6 Weapon 4 | . 3 4 2 3 2 1 2 2 3 5 4 5 5 5 6 6 4 2 3 6 6 5 4 5 4 3 4 4 Tool/Special . | . . . . . . . . . . . . . . . . . . . . . . . . . . . . . Unused Backups 36 | . 3 . 5 . 1 . . 3 . 5 4 1 . . . . 2 . 1 . . 5 1 1 1 . . 3 Power 5 | . 1 . 2 . . . . . . . . . . . . . . . . . . 1 1 . . . . . Propulsion 4 | . . . 1 . . . . 2 . . . . . . . . . . . . . . . 1 . . . . Utility 11 | . . . 2 . . . . 1 . 2 3 . . . . . . . . . . 1 . . 1 . . 1 Weapon 16 | . 2 . . . 1 . . . . 3 1 1 . . . . 2 . 1 . . 3 . . . . . 2 Tool/Special . | . . . . . . . . . . . . . . . . . . . . . . . . . . . . . Average Slot Usage (%) 97 | . 100 100 99 100 95 92 100 100 92 96 98 100 100 99 97 99 82 99 99 100 99 97 94 94 92 95 98 89 Engine 5 | . 14 14 11 11 3 4 9 9 12 12 4 . . . . 3 11 11 1 . . . . . . . . . Core 1 | . . . . . 5 3 . . . . . . . 2 5 7 . . 3 . . . . . . . . . Reactor 3 | . . . . . . . . . . . 6 13 13 7 2 . . . 4 10 10 7 5 4 4 6 8 7 Leg 29 | . 28 28 33 33 34 30 36 36 33 32 33 33 33 29 29 28 28 29 25 26 26 26 26 27 28 23 24 25 Device 14 | . 17 14 11 11 9 4 . . 9 12 13 13 13 22 17 17 17 16 25 26 26 25 26 20 20 22 24 11 Storage 6 | . 10 14 11 11 9 9 9 9 6 6 6 6 6 5 5 5 5 5 5 5 5 5 5 4 4 4 4 7 Processor 8 | . . . . . 3 6 9 9 2 5 6 6 6 5 11 11 11 11 10 10 10 10 10 14 14 14 17 13 Protection 4 | . . . . . 2 6 9 8 5 6 6 6 5 5 5 5 4 5 5 5 5 4 5 7 4 2 . 5 Energy Gun 2 | . . . . . . 3 9 9 6 1 4 6 6 5 5 5 . 5 5 . . . . . . 2 1 . Energy Cannon 3 | . . . . . . . . . . 2 . 6 5 . . . . . 2 5 5 5 8 9 9 14 14 9 Ballistic Gun 10 | . 20 . 20 33 24 18 16 18 10 11 13 6 6 11 11 11 . 10 4 5 5 5 4 . . . . 1 Ballistic Cannon 2 | . 5 26 11 . . . . . . . . . . . . . . . 2 5 4 5 1 3 1 . . 2 Peak Build Rating 212 | 9 11 11 21 19 31 33 34 41 54 62 102 102 103 113 108 107 97 107 127 121 121 151 147 155 174 189 181 212 Average Rating 90 | 5 10 11 17 18 25 30 33 34 48 54 83 101 101 108 100 101 75 101 119 120 120 131 143 147 164 167 171 195 On Entrance 83 | . 9 11 11 19 19 31 31 34 36 52 62 102 101 102 107 96 97 97 102 120 121 121 151 143 148 174 156 178 Avg Prop Armor Cover (%) 2 | . . . . . . . . . . 2 . . . . . . . . . . . . . . . 3 . . Naked Turns . | . . . . . . . . . . . . . . . . . . . . . . . . . . . . . Heaviest Build 173 | 14 26 26 31 28 37 48 44 40 54 61 93 93 93 92 84 78 58 63 104 103 103 124 124 135 146 163 130 173 Greatest Support 178 | 20 20 20 30 30 45 48 52 55 88 91 124 124 124 127 127 132 119 129 129 118 118 143 146 161 164 164 178 178 Greatest Overweight (x) 4 | 2 1 1 1 . 1 4 . . . . . . . . . . . . . . . 1 . . . 1 . 1 Average Overweight (x) . | . . 1 . . . . . . . . . . . . . . . . . . . . . . . . . . Largest Inventory Capacity 20 | 8 10 10 10 10 15 15 15 15 15 15 15 15 15 15 15 15 15 15 20 20 20 20 20 20 20 20 20 20 Average Capacity 15 | 7 8 10 10 10 10 15 15 15 15 15 15 15 15 15 15 15 15 15 16 20 20 20 20 20 20 20 20 20 Most Carried 20 | 3 10 10 10 10 14 15 15 15 15 15 15 15 15 15 15 15 15 15 18 20 20 20 20 20 20 20 20 20 Average Carried 14 | 1 8 10 9 10 10 12 14 14 14 14 14 15 15 14 15 14 14 14 15 19 20 19 19 19 19 15 18 17 Final Capacity 20 | 5 10 10 10 10 15 15 15 15 15 15 15 15 15 15 15 15 15 15 20 20 20 20 20 20 20 20 20 20 Final Carried 20 | 3 10 10 10 10 14 13 15 15 15 15 15 15 15 15 15 15 14 14 18 20 20 20 19 20 20 12 20 17 Scrap Suit Usage (%) 4 | . . . . . . . . . 93 12 . . . . . . . . . . . . . . . . . 13 Parts Cannibalized 5 | . . . . . . . . . 3 1 . . . . . . . . . . . . . . . . . 1 Class Distribution -------------------- 23% | Scavenger-Tank 20% | Scavenger-Gunner 19% | Gunner 12% | Scavenger-Skirmisher 11% | Mutant 5% | Tank Dominant Class ---------------- Mutant | -10/Materials Mutant | -10/Mines Gunner | -9/Materials Gunner | -9/Mines Scavenger-Gunner | -8/Materials Scavenger-Gunner | -8/Storage Gunner | -8/Recycling Gunner | -8/Scraptown Gunner | -6/Factory Scavenger-Tank | -6/Extension Scavenger-Gunner | -6/Cetus Scavenger-Tank | -6/Archives Scavenger-Gunner | -6/Hub_04(d) Scavenger-Tank | -5/Factory Scavenger-Tank | -5/Upper Caves Scavenger-Tank | -5/Upper Caves Scavenger-Mutant | -5/Zhirov Scavenger-Tank | -4/Proximity Caves Scavenger-Skirmisher | -4/Factory Scavenger-Skirmisher | -4/Upper Caves Scavenger-Skirmisher | -4/Upper Caves Scavenger-Skirmisher | -4/Warlord Scavenger-Skirmisher | -3/Proximity Caves Tank | -3/Research Tank | -3/Quarantine Alien-Tank | -2/Research Scavenger-Gunner | -2/Testing Scavenger-Gunner | -2/Protoforge Resources | -11 -10 -10 -9 -9 -8 -8 -8 -8 -6 -6 -6 -6 -6 -5 -5 -5 -5 -4 -4 -4 -4 -4 -3 -3 -3 -2 -2 -2 ----------- Run | Yrd Mat Min Mat Min Mat Sto Rec Scr Fac Ext Cet Arc Hub Fac Upp Upp Zhi Pro Fac Upp Upp War Pro Res Qua Res Tes Frg Matter Collected 19541 | 255 438 84 724 191 701 644 186 60 298 1290 275 44 214 652 316 344 . 389 739 112 130 419 362 456 45 144 456 9573 Remotely . | . . . . . . . . . . . . . . . . . . . . . . . . . . . . . Salvage Created 14909 | 120 543 25 927 146 1065 704 448 . 314 2321 81 81 198 1094 352 390 . 197 1570 . 120 617 516 998 114 564 367 1037 Parts 636 | 7 44 6 54 10 44 21 21 . 9 95 2 6 6 48 14 19 . 7 76 . 8 16 23 27 3 29 14 27 Haulers Intercepted 14 | . 2 . 5 . 4 1 . . . . . . . 1 . . . . . . . . . 1 . . . . Recyclers Shooed 8 | 1 . . . . 1 1 . . 1 1 . . . 2 . . . . . . . . . . . 1 . . Parts Field Recycled . | . . . . . . . . . . . . . . . . . . . . . . . . . . . . . Retrieved Matter . | . . . . . . . . . . . . . . . . . . . . . . . . . . . . . Parts Self-Destructed 63 | . . . . . . . . . . . . . . . 12 21 . 6 . . 1 . 23 . . . . . Prevented 4 | . . . . . . . . . . . . . . . . . . . . . 4 . . . . . . . Parts Restored . | . . . . . . . . . . . . . . . . . . . . . . . . . . . . . Kills | -11 -10 -10 -9 -9 -8 -8 -8 -8 -6 -6 -6 -6 -6 -5 -5 -5 -5 -4 -4 -4 -4 -4 -3 -3 -3 -2 -2 -2 ------- Run | Yrd Mat Min Mat Min Mat Sto Rec Scr Fac Ext Cet Arc Hub Fac Upp Upp Zhi Pro Fac Upp Upp War Pro Res Qua Res Tes Frg Combat Hostiles Destroyed 325 | . 14 3 14 . 17 15 2 . 7 31 2 1 2 16 4 6 . 4 23 . 4 8 9 12 2 14 3 112 Melee 8 | . . . . . 2 . . . . 6 . . . . . . . . . . . . . . . . . . Guns 123 | . 14 . 7 . 13 11 2 . 7 20 2 . 1 14 4 6 . 4 12 . . . 4 . . 1 . 1 Cannons 71 | . . 3 7 . . . . . . 4 . 1 1 . . . . . 7 . . 8 4 9 2 10 1 14 AOE 113 | . . . . . 2 4 . . . . . . . 2 . . . . 4 . 4 . 1 3 . 1 . 92 Classes Destroyed 29 | 2 6 . 1 . 4 . . . . 2 . . . 1 . . . 1 . . . 1 1 . . . 2 8 Worker 12 | . 1 . . 2 1 . . . . 1 . . 1 . . . . . 2 . . . . 1 . 1 . 2 Builder 12 | . . . . . 2 . 3 . . 1 . . 1 1 . . . . 3 . . . . . . 1 . . Tunneler 5 | 1 . 1 . 1 1 . . . . . . . . . . . . . . . . . . . . 1 . . Hauler 14 | . 2 . 5 . 4 1 . . . . . . . 1 . . . . . . . . . 1 . . . . Recycler 18 | 1 1 . 2 2 1 . 4 . . 3 . . . 1 . . . . 1 . . . . 2 . . . . Carrier 2 | . . . . . . . . . . . . . . . . . . . . . . . . . . . . 2 Mechanic 9 | . . . . . 1 1 . . . . . . . . . . . . . . . . . . . . . 7 Operator 5 | . 1 . 2 . . . . . . 1 . . . . . . . . . . . . . . . . . 1 Drone 8 | . . . . . . . . . . . . . . . . . . 1 . . . . 1 . . . . 6 Watcher 5 | . 1 . 2 . 1 . . . . . . . . . . . . . . . . . . . . . 1 . Swarmer 45 | . 9 3 3 . . . . . 3 . . . . 4 . . . 1 . . 4 . . . . . . 18 Saboteur 3 | . . . . . . . . . . . . . . . . . . . . . . . . . . . . 3 Grunt 120 | . 5 . 6 . 13 12 . . 3 20 . . 1 7 2 3 . 1 8 . . 3 5 10 2 . 2 17 Brawler 10 | . . . . . 1 1 . . . . . . . . 1 . . . . . . 1 . . . . . 6 Duelist 16 | . . . . . 1 2 . . . 3 . . . . . . . . . . . 1 . . . . . 9 Protector 5 | . . . . . . . . . . . . . . . . . . . . . . 1 . . . . . 4 Researcher 2 | . . . . . . . . . . . . . . . . . . . . . . . . . . . 2 . Sentry 26 | . . . 5 . 2 . 2 . 1 3 . 1 1 2 . 1 . 1 3 . . . . . . 3 . 1 Demolisher 2 | . . . . . . . . . . . . . . . . . . . . . . . 2 . . . . . Specialist 2 | . . . . . . . . . . . . . . . . . . . . . . . . . . . . 2 Hunter 29 | . . . . . . . . . . 4 . . . . . 2 . . 6 . . . . 2 . 5 . 10 Programmer 27 | . . . . . . . . . . . . . . 3 1 . . . 6 . . 2 1 . . 6 . 8 Behemoth 1 | . . . . . . . . . . 1 . . . . . . . . . . . . . . . . . . Cetus Guard 2 | . . . . . . . . . . . 2 . . . . . . . . . . . . . . . . . Enhanced Grunt 1 | . . . . . . . . . . . . . 1 . . . . . . . . . . . . . . . Hotshot 5 | . . . . . . . . . . . . . . . . . . . . . . . . . . . . 5 Striker 8 | . . . . . . . . . . . . . . . . . . . . . . . . . . . . 8 Executioner 14 | . . . . . . . . . . . . . . . . . . . . . . . . . . . . 14 Alpha 7 2 | . . . . . . . . . . . . . . . . . . . . . . . . . . . 1 1 Scrapper 1 | . . . . . . . . . . . . . . . . . . . . . . . . . . . . 1 Scrapoid 10 | . . . . . . . . . . . . . . . . . . . . . . . . . . . . 10 Scraphulk 1 | . . . . . . . . . . . . . . . . . . . . . . . . . . . . 1 Thug 2 | . . . . . . . . . . . . . . 1 . . . . . . . 1 . . . . . . Savage 1 | . . . . . . . . . . . . . . . 1 . . . . . . . . . . . . . Bouncer 1 | . . . . . . . . . . . . . . . . . . . . . . 1 . . . . . . Best Kill Streak 21 | 2 5 3 9 2 12 7 5 . 3 8 2 1 2 5 2 3 . 2 5 . 4 3 6 4 2 7 2 21 Combat Bots Only 19 | . 4 3 5 . 9 6 1 . 3 4 2 1 2 4 2 3 . 2 5 . 4 3 6 3 2 5 1 19 Max Kills in Single Turn 6 | 1 1 1 2 1 3 3 2 . 1 2 1 1 2 2 1 1 . 1 3 . 3 2 2 2 1 2 1 6 Gunslinging 1 | . . . 1 . 1 . . . . . . . . 1 . . . . . . . . . . . . . . Exploded 5 | . . . . . 1 2 . . . . . . . 2 . . . . 2 . 3 . 1 2 . 1 . 5 Melee 1 | . . . . . 1 . . . . 1 . . . . . . . . . . . . . . . . . . Uniques/NPCs Destroyed . | . . . . . . . . . . . . . . . . . . . . . . . . . . . . . Combat | -11 -10 -10 -9 -9 -8 -8 -8 -8 -6 -6 -6 -6 -6 -5 -5 -5 -5 -4 -4 -4 -4 -4 -3 -3 -3 -2 -2 -2 -------- Run | Yrd Mat Min Mat Min Mat Sto Rec Scr Fac Ext Cet Arc Hub Fac Upp Upp Zhi Pro Fac Upp Upp War Pro Res Qua Res Tes Frg Hostile Shots Fired 1966 | . 52 31 37 . 87 101 8 . 60 224 32 2 130 118 13 66 . 39 261 . 3 14 91 85 41 172 14 285 Missed 721 | . 13 13 14 . 28 25 2 . 22 80 11 2 49 59 5 13 . 13 111 . 1 8 36 41 24 52 5 94 Hits 1245 | . 39 18 23 . 59 76 6 . 38 144 21 . 81 59 8 53 . 26 150 . 2 6 55 44 17 120 9 191 Melee 25 | . . . . . 5 6 . . . 6 . . . . 2 . . . . . . . . . . . . 6 Projectile 1220 | . 39 18 23 . 54 70 6 . 38 138 21 . 81 59 6 53 . 26 150 . 2 6 55 44 17 120 9 185 AOE 16 | . . . . . . . . . . . . . . . . . . . 2 . . . 13 . . . . 1 Critical Strikes 76 | . 1 . 3 . 3 11 . . 1 2 3 . . 4 2 . . 1 8 . . 1 2 3 . 13 . 18 Part Disruptions 1 | . . . . . . . . . . . . . . . . . . . . . . . . . . 1 . . Damage Taken 23101 | . 389 141 275 . 1090 1475 88 . 492 2022 564 50 480 1106 151 728 . 396 2857 . 26 146 1319 515 142 1937 178 6534 Core 2978 | . 33 40 52 . 163 51 . . 19 224 142 16 120 110 . 26 . 51 302 . 14 25 165 16 39 213 14 1143 Absorbed by Shields 2862 | . . . . . . . . . . 397 90 12 208 227 56 269 . 133 76 . . 121 272 399 150 420 32 . Redirected to Core 127 | . . . . . . . . . . . . . . . . . . . . . . . . . 21 106 . . Ignored by Resistances 1305 | . . . . . . . . . . . . . . . . . . . . . . 91 318 88 60 199 . 549 Regen/Repaired (Parts) 2169 | . . . . . . . . . 30 10 . . . . . . . . . . . 310 . . . . . 1819 Core Remaining (%) 72 | 100 . 70 . 87 . . . 61 . . . . 38 . . . . 81 . . . . 56 . 89 . . . Volleys Fired 921 | 4 42 13 46 20 50 50 12 . 21 82 20 7 18 79 13 20 . 16 88 1 10 22 39 37 12 41 19 139 Largest 4 | 2 2 2 3 3 3 3 3 . 3 3 3 3 3 3 3 3 . 3 3 1 1 3 3 3 3 4 4 4 Hottest 451 | 60 60 66 99 69 75 106 106 . 106 128 143 205 205 240 148 148 . 149 216 90 90 180 215 254 300 380 436 451 Shots Fired 2249 | 8 83 26 138 58 138 101 36 . 63 241 47 15 41 171 39 59 . 44 203 2 10 63 112 93 24 109 50 275 Gun 1352 | 8 83 . 88 57 132 96 36 . 63 173 47 11 28 171 39 59 . 44 132 . . 21 36 . . 10 5 13 Cannon 796 | . . 26 50 . . . . . . 68 . 4 13 . . . . . 71 2 7 42 76 89 24 96 45 183 Launcher 101 | . . . . 1 6 5 . . . . . . . . . . . . . . 3 . . 4 . 3 . 79 Special . | . . . . . . . . . . . . . . . . . . . . . . . . . . . . . Kinetic 1295 | 4 81 26 138 57 132 91 24 . 42 165 35 7 18 105 25 39 . 32 97 1 . 42 51 28 6 . 2 47 Thermal 815 | 4 2 . . . . 5 12 . 21 76 12 8 23 66 14 20 . 12 106 1 7 21 61 61 18 68 48 149 Explosive 95 | . . . . 1 6 5 . . . . . . . . . . . . . . . . . 1 . 3 . 79 Electromagnetic 6 | . . . . . . . . . . . . . . . . . . . . . 3 . . 3 . . . . Entropic 38 | . . . . . . . . . . . . . . . . . . . . . . . . . . 38 . . Robot Hit Streak 43 | 4 13 3 13 2 43 12 9 . 7 14 5 11 5 11 10 11 . 9 13 . 1 7 7 9 15 14 12 22 Robot Miss Streak 7 | 2 6 6 6 2 2 6 1 . 4 4 3 1 3 6 3 1 . 5 7 . . 4 6 6 2 3 3 5 Penetration Max 1 | . . . . . . . . . . 1 1 . 1 1 1 . . . 1 . . . . 1 . . . 1 Secondary Targets 18 | . . . 2 . 3 7 . . 1 . 1 . . 2 . 1 . . 1 . . . . . . . . . Max Gunslinging Chain 1 | . . . 1 . 1 1 . . 1 . 1 . . 1 . 1 . . 1 . . . . . . . . . Shots Hit Robots 1306 | 4 52 8 83 7 123 67 23 . 38 183 27 13 24 74 25 45 . 16 101 . 1 36 52 56 12 56 28 152 Core Hits 742 | 3 33 4 34 6 52 41 11 . 19 86 12 6 12 42 11 16 . 7 58 . 5 24 29 30 4 26 8 163 Critical Kills 22 | . . . . 1 1 . . . . 5 1 . . 2 1 . . 1 2 . . . . . . 1 2 5 Critical Parts Destroyed 29 | . . . . . 3 3 . . . 3 . 2 2 6 . . . 1 6 . . 1 . . 2 . . . Critical Strikes 68 | . . . 1 1 4 3 2 . 1 9 1 2 2 8 1 . . 2 9 . . 1 . 6 4 4 2 5 Burn 3 | . . . . . . . 2 . 1 . . . . . . . . . . . . . . . . . . . Meltdown 9 | . . . . . . . . . . 1 . . . . . . . . . . . . . . . 1 2 5 Destroy 36 | . . . . 1 2 3 . . . 3 1 2 2 8 1 . . 2 8 . . 1 . . 2 . . . Blast 10 | . . . 1 . . . . . . . . . . . . . . . 1 . . . . 6 2 . . . Smash 6 | . . . . . 2 . . . . 4 . . . . . . . . . . . . . . . . . . Sever 1 | . . . . . . . . . . 1 . . . . . . . . . . . . . . . . . . Sunder 3 | . . . . . . . . . . . . . . . . . . . . . . . . . . 3 . . Melee Attacks 63 | . 2 2 2 . 18 4 3 . 11 21 . . . . . . . . . . . . . . . . . . Impact 53 | . 2 2 2 . 18 4 3 . 11 11 . . . . . . . . . . . . . . . . . . Slashing 10 | . . . . . . . . . . 10 . . . . . . . . . . . . . . . . . . Piercing . | . . . . . . . . . . . . . . . . . . . . . . . . . . . . . Sneak Attacks 9 | . . . . . 6 . 1 . . 2 . . . . . . . . . . . . . . . . . . Combat Hostiles . | . . . . . . . . . . . . . . . . . . . . . . . . . . . . . Follow-up Attacks 3 | . . . . . . . . . . 3 . . . . . . . . . . . . . . . . . . Damage Inflicted 82781 | 55 755 183 1398 175 3093 2185 532 . 654 4414 804 411 1168 2612 709 1099 . 438 4049 . 206 1759 2004 2864 774 3721 874 45845 Guns 17400 | 55 755 . 860 98 1599 1158 432 . 654 2332 804 263 452 2269 709 1099 . 438 1980 . . 482 453 . . 193 124 191 Cannons 18234 | . . 183 538 . . . . . . 1214 . 148 374 . . . . . 1156 . . 1277 1237 2071 774 2898 750 5614 Explosions 45415 | . . . . 77 755 1027 . . . . . . 342 343 . . . . 902 . 206 . 314 779 . 630 . 40040 Melee 1707 | . . . . . 739 . 100 . . 868 . . . . . . . . . . . . . . . . . . Ramming 25 | . . . . . . . . . . . . . . . . . . . 11 . . . . 14 . . . . Kinetic 17710 | 23 744 183 1398 98 1599 1088 276 . 402 2228 684 159 332 1554 546 621 . 287 1389 . . 1084 701 783 99 . 89 1343 Thermal 18080 | 32 11 . . 45 . 70 156 . 252 1318 120 252 539 1058 163 478 . 151 2498 . . 675 1303 1696 675 1341 785 4462 Explosive 42651 | . . . . 32 755 1027 . . . . . . . . . . . . 88 . . . . 79 . 630 . 40040 Electromagnetic 858 | . . . . . . . . . . . . . 297 . . . . . 63 . 206 . . 292 . . . . Impact 1230 | . . . . . 739 . 100 . . 391 . . . . . . . . . . . . . . . . . . Slashing 477 | . . . . . . . . . . 477 . . . . . . . . . . . . . . . . . . Piercing . | . . . . . . . . . . . . . . . . . . . . . . . . . . . . . Entropic 1750 | . . . . . . . . . . . . . . . . . . . . . . . . . . 1750 . . Highest Corruption 13 | . . . . . . . . . . 2 1 1 6 7 7 7 7 7 3 3 3 3 3 . . 9 9 13 Average Corruption 7 | . . . . . . . . . . 1 1 1 1 6 7 7 7 7 1 3 3 3 2 . . 6 9 12 Corruption Purged 3 | . . . . . . . . . . 2 . . 1 . . . . . . . . . . . . . . . Corruption Blocked . | . . . . . . . . . . . . . . . . . . . . . . . . . . . . . Effects 279 | . . . . . . . . . . 1 2 . 1 25 29 29 6 18 11 3 8 1 9 . . 12 20 104 Message Errors 69 | . . . . . . . . . . . 2 . . 8 7 9 3 4 3 . 3 . 3 . . . 6 21 Matter Fused 65 | . . . . . . . . . . . . . 1 8 7 8 . 4 1 1 3 . 3 . . 3 4 22 Heat Flow Errors 34 | . . . . . . . . . . . . . . 1 5 2 . 6 4 . . . 1 . . . 2 13 Energy Discharges 37 | . . . . . . . . . . . . . . 2 3 6 3 1 2 . 1 1 1 . . 1 2 14 Parts Rejected 5 | . . . . . . . . . . . . . . . . . . . . . . . . . . 1 . 4 Parts Fused 3 | . . . . . . . . . . . . . . . 2 . . . . . . . . . . . . 1 Data Loss (minor) 26 | . . . . . . . . . . . . . . 3 3 1 . 3 . 1 . . . . . 2 3 10 Data Loss (major) 11 | . . . . . . . . . . . . . . 1 . . . . . . 1 . . . . . 2 7 Misfires 8 | . . . . . . . . . . 1 . . . 1 1 1 . . 1 1 . . . . . 1 1 . Alerts 5 | . . . . . . . . . . . . . . 1 . . . . . . . . . . . 1 . 3 Misdirections 3 | . . . . . . . . . . . . . . . . . . . . . . . . . . . . 3 Weapon Failures 13 | . . . . . . . . . . . . . . . 1 2 . . . . . . 1 . . 3 . 6 Overload Shots 1 | . . . . . . . . . . . . . . 1 . . . . . . . . . . . . . . Overflow Damage 7102 | . . . 18 . 390 29 60 . . 231 . 15 1 63 . . . . 277 . 7 21 75 16 85 297 3 5514 Projectiles 592 | . . . 18 . . . . . . . . 15 1 . . . . . 23 . . 21 45 16 85 280 3 85 Explosions 5851 | . . . . . 22 29 . . . . . . . 63 . . . . 254 . 7 . 30 . . 17 . 5429 Melee 659 | . . . . . 368 . 60 . . 231 . . . . . . . . . . . . . . . . . . Knockbacks 31 | . . 1 3 . 2 . . . . 2 . . . . . . . . 8 . . 1 1 7 . . . 6 Impact 4 | . . . . . 2 . . . . 2 . . . . . . . . . . . . . . . . . . Kinetic 24 | . . 1 3 . . . . . . . . . . . . . . . 6 . . 1 1 6 . . . 6 Secondary 3 | . . . . . . . . . . . . . . . . . . . 2 . . . . 1 . . . . Self-Inflicted Damage 1356 | . . . . . 59 155 . . . . . . 89 144 . . . . 66 . . . 17 . . . . 826 Shots 16 | . . . . . 2 4 . . . . . . 1 2 . . . . 1 . . . 1 . . . . 5 Rammed . | . . . . . . . . . . . . . . . . . . . . . . . . . . . . . Targets Rammed 2 | . . . . . . . . . . . . . . . . . . . 1 . . . . 1 . . . . Kicked 2 | . . . . . . . . . . . . . . . . . . . 1 . . . . 1 . . . . Crushed . | . . . . . . . . . . . . . . . . . . . . . . . . . . . . . Highest Temperature 408 | . 9 99 99 . 134 333 218 . 408 310 36 102 374 150 249 222 . 180 347 . . . 19 19 264 142 288 288 Average Temperature 75 | . 2 44 16 . 53 97 96 . 173 72 15 57 187 32 118 49 . 88 79 . . . 19 5 45 51 121 66 Received Heat Transfer 3916 | . 132 . 141 . 486 756 27 . 162 535 63 . 70 341 24 78 . 97 201 . . 14 128 108 42 26 35 450 Effects 5 | . . . . . . . . . 1 3 . . 1 . . . . . . . . . . . . . . . Shutdowns 1 | . . . . . . . . . 1 . . . . . . . . . . . . . . . . . . . Energy Bleed 1 | . . . . . . . . . . 1 . . . . . . . . . . . . . . . . . . Interference 2 | . . . . . . . . . . 2 . . . . . . . . . . . . . . . . . . Matter Decay 1 | . . . . . . . . . . . . . 1 . . . . . . . . . . . . . . . Siege Activations . | . . . . . . . . . . . . . . . . . . . . . . . . . . . . . Martial Activations . | . . . . . . . . . . . . . . . . . . . . . . . . . . . . . Shielding Activations . | . . . . . . . . . . . . . . . . . . . . . . . . . . . . . Robots Disrupted . | . . . . . . . . . . . . . . . . . . . . . . . . . . . . . Combat Hostiles . | . . . . . . . . . . . . . . . . . . . . . . . . . . . . . Robots Corrupted 4 | . . . . . 4 . . . . . . . . . . . . . . . . . . . . . . . Combat Hostiles . | . . . . . . . . . . . . . . . . . . . . . . . . . . . . . Parts Fried 10 | . . . . . 7 . 1 . . . . . 2 . . . . . . . . . . . . . . . Impact Corruptions 16 | . . . . . 11 . 3 . . 2 . . . . . . . . . . . . . . . . . . Robots Melted 10 | . . . . . . . . . . 1 . . . . . . . . . . . . . . . 2 2 5 Combat Hostiles 10 | . . . . . . . . . . 1 . . . . . . . . . . . . . . . 2 2 5 Parts Melted 26 | . . . . . . . . . 1 4 . . . 2 . 1 . . 3 . . 1 . . . 6 2 6 Heat Transferred 15732 | 75 25 . . 50 . 148 481 . 629 1998 148 148 235 1125 222 592 . 185 2583 . . . 354 892 259 1258 850 3475 Parts Sabotaged . | . . . . . . . . . . . . . . . . . . . . . . . . . . . . . Parts Stolen . | . . . . . . . . . . . . . . . . . . . . . . . . . . . . . Parts Stripped . | . . . . . . . . . . . . . . . . . . . . . . . . . . . . . Power Chain Reactions 5 | . . . . . . . . . . . . . 1 . . . . . . . 1 . 1 2 . . . . Alert | -11 -10 -10 -9 -9 -8 -8 -8 -8 -6 -6 -6 -6 -6 -5 -5 -5 -5 -4 -4 -4 -4 -4 -3 -3 -3 -2 -2 -2 ------- Run | Yrd Mat Min Mat Min Mat Sto Rec Scr Fac Ext Cet Arc Hub Fac Upp Upp Zhi Pro Fac Upp Upp War Pro Res Qua Res Tes Frg Maximum Alert Level 5 | . 1 . . . 1 2 1 . . 2 1 1 1 3 . . . . 3 . . . . 3 2 2 3 5 Low Security (%) 39 | 100 96 100 100 100 66 2 71 . 100 56 9 29 40 7 . . . . . . . . . . . . . . Level 1 20 | . 3 . . . 33 46 28 . . 40 90 70 59 36 . . . . 8 . . . . 30 . 44 13 . Level 2 23 | . . . . . . 50 . . . 2 . . . 55 . . . . 85 . . . . 34 100 55 59 12 Level 3 7 | . . . . . . . . . . . . . . . . . . . 6 . . . . 34 . . 27 23 Level 4 1 | . . . . . . . . . . . . . . . . . . . . . . . . . . . . 10 Level 5 7 | . . . . . . . . . . . . . . . . . . . . . . . . . . . . 53 High Security . | . . . . . . . . . . . . . . . . . . . . . . . . . . . . . Max Security . | . . . . . . . . . . . . . . . . . . . . . . . . . . . . . Peak Influence 3391 | 10 257 62 150 163 262 510 286 . 73 408 297 252 355 715 . . . . 781 . . . . 765 520 469 871 3391 Initial 460 | . . . . 34 6 79 204 . . . 220 96 74 168 . . . . 308 . . . . 309 417 292 228 460 Average 508 | 1 56 6 42 48 164 356 121 . 29 172 239 202 202 415 . . . . 548 . . . . 547 463 380 551 1973 Influence Increases 15055 | 10 531 78 438 210 502 754 235 . 195 1042 307 166 451 1073 100 140 . 125 1493 . 90 235 258 1135 273 510 897 3807 Destroy 0b10 Robot/C 7500 | . 280 60 280 . 340 360 40 . 140 700 160 80 140 420 80 120 . 60 460 . 80 160 180 340 40 280 400 2300 Destroy 0b10 Robot/NC 530 | 10 30 5 55 25 55 10 35 . . 45 10 . 25 15 . . . 5 30 . . 5 10 25 . 15 10 110 Destroy Leader 1240 | . 66 10 74 . 80 62 . . 30 116 . . 42 62 20 20 . . 110 . 10 . 20 32 . 80 44 362 Allied During Kill 839 | . . . . . . 16 2 . . 114 102 67 106 56 . . . . . . . 40 3 18 . . 153 162 Successful Hack 211 | . 47 . 8 . . 17 35 . . 30 11 . . 26 . . . . . . . . . 23 14 . . . Select Force Hacks 180 | . 60 . . . . . 120 . . . . . . . . . . . . . . . . . . . . . Disable Machine 780 | . . . 15 150 15 30 . . . 15 15 15 45 90 . . . . 150 . . . . . 120 . 45 75 Anti-Garrison Action 1100 | . . . . . . 150 . . . . . . . 200 . . . . 200 . . . . 200 . . 200 150 Destroy Structure 1505 | . 3 3 6 35 12 49 3 . 10 7 9 4 93 144 . . . . 198 . . . . 152 24 135 45 573 Advance Influence 600 | . . . . . . . . . . . . . . . . . . . 300 . . . . 300 . . . . Partial Spotted 15 | . . . . . . . . . 15 . . . . . . . . . . . . . . . . . . . Lose Combat Pursuer 555 | . 45 . . . . 60 . . . 15 . . . 60 . . . 60 45 . . 30 45 45 75 . . 75 Influence Decreases 11682 | 10 531 78 350 280 332 417 760 . 195 649 459 195 318 707 636 315 . 111 742 414 248 302 370 407 495 624 484 1253 Entered New Map 3199 | . . . . 54 12 109 321 . . . 173 145 138 177 264 34 . . 6 284 68 193 126 5 325 228 178 359 Time Decay 7025 | 10 371 78 350 226 280 198 290 . 195 507 206 50 140 490 362 271 . 91 526 130 180 69 217 392 170 286 286 654 Search Patrol Dispatched 100 | . . . . . . . . . . . . . . . . . . . 100 . . . . . . . . . Lost Part 637 | . 10 . . . 40 90 . . . 60 20 . . 20 10 10 . 20 80 . . . 7 . . 110 . 160 Lost Ally 422 | . . . . . . 20 . . . 82 60 . 40 20 . . . . 30 . . 40 20 10 . . 20 80 Purge Threat 299 | . 150 . . . . . 149 . . . . . . . . . . . . . . . . . . . . . Squads Dispatched 83 | . 4 . . . 1 7 . . 3 7 . . . 7 . . . . 14 . . . . 10 2 6 7 15 Investigation 38 | . 3 . . . . 1 . . 2 5 . . . 4 . . . . 7 . . . . 7 . 2 1 6 Extermination 9 | . . . . . . . . . 1 . . . . 2 . . . . 3 . . . . . . 1 1 1 Reinforcement 25 | . 1 . . . 1 1 . . . 2 . . . 1 . . . . 4 . . . . 3 2 2 4 4 Assault 11 | . . . . . . 5 . . . . . . . . . . . . . . . . . . . 1 1 4 Garrison . | . . . . . . . . . . . . . . . . . . . . . . . . . . . . . Intercept . | . . . . . . . . . . . . . . . . . . . . . . . . . . . . . Searches Triggered 1 | . . . . . . . . . . . . . . . . . . . 1 . . . . . . . . . Construction Impeded 6 | . . . . . 1 1 . . . . . . . . . . . . 3 . . . . . . 1 . . Haulers Reinforced 1 | . . . . . . . . . . . . . . . . . . . . . . . . 1 . . . . Active Scanning Responses . | . . . . . . . . . . . . . . . . . . . . . . . . . . . . . Cargo Convoy Interrupts . | . . . . . . . . . . . . . . . . . . . . . . . . . . . . . Stealth | -11 -10 -10 -9 -9 -8 -8 -8 -8 -6 -6 -6 -6 -6 -5 -5 -5 -5 -4 -4 -4 -4 -4 -3 -3 -3 -2 -2 -2 --------- Run | Yrd Mat Min Mat Min Mat Sto Rec Scr Fac Ext Cet Arc Hub Fac Upp Upp Zhi Pro Fac Upp Upp War Pro Res Qua Res Tes Frg Distress Signals 63 | . 2 . 4 . 2 . . . . 2 2 . 1 1 . . . 1 3 . . 2 19 5 1 2 1 15 Communications Jammed . | . . . . . . . . . . . . . . . . . . . . . . . . . . . . . Distress Signals . | . . . . . . . . . . . . . . . . . . . . . . . . . . . . . Times Spotted 595 | . 27 3 27 . 26 23 2 . 11 40 12 5 10 36 4 6 . 6 26 . 2 51 19 27 10 18 21 183 Peak Tracking Total 13 | . 8 3 6 . 3 10 1 . 3 3 5 2 4 6 3 3 . 5 4 . 4 12 6 6 4 4 4 13 Tactical Retreats 24 | . 2 . . . . 2 . . . 1 . . . 3 . . . 2 2 . . 2 2 1 2 . . 5 Traps | -11 -10 -10 -9 -9 -8 -8 -8 -8 -6 -6 -6 -6 -6 -5 -5 -5 -5 -4 -4 -4 -4 -4 -3 -3 -3 -2 -2 -2 ------- Run | Yrd Mat Min Mat Min Mat Sto Rec Scr Fac Ext Cet Arc Hub Fac Upp Upp Zhi Pro Fac Upp Upp War Pro Res Qua Res Tes Frg Traps Triggered 9 | . 1 . . . . 1 . . . 2 . . . 1 . . . . 2 . . . . 2 . . . . Indirectly 1 | . . . . . . . . . . . . . . . . . . . . . . . . 1 . . . . Trap Hack Attempts . | . . . . . . . . . . . . . . . . . . . . . . . . . . . . . Triggered . | . . . . . . . . . . . . . . . . . . . . . . . . . . . . . Disarmed . | . . . . . . . . . . . . . . . . . . . . . . . . . . . . . Reprogrammed . | . . . . . . . . . . . . . . . . . . . . . . . . . . . . . Reused . | . . . . . . . . . . . . . . . . . . . . . . . . . . . . . Traps Extracted . | . . . . . . . . . . . . . . . . . . . . . . . . . . . . . Installed . | . . . . . . . . . . . . . . . . . . . . . . . . . . . . . Triggered . | . . . . . . . . . . . . . . . . . . . . . . . . . . . . . Machines | -11 -10 -10 -9 -9 -8 -8 -8 -8 -6 -6 -6 -6 -6 -5 -5 -5 -5 -4 -4 -4 -4 -4 -3 -3 -3 -2 -2 -2 ---------- Run | Yrd Mat Min Mat Min Mat Sto Rec Scr Fac Ext Cet Arc Hub Fac Upp Upp Zhi Pro Fac Upp Upp War Pro Res Qua Res Tes Frg Machines Disabled 63 | . . . 1 10 1 3 . . . 2 3 1 3 6 . . . . 10 . . 1 3 . 9 . 3 7 Max in Single Turn 9 | . . . 1 9 1 2 . . . 1 1 . 3 5 . . . . 4 . . 1 1 . 3 . 2 2 Garrison Access 7 | . . . . . . 1 . . . . . . . 1 . . . . 2 . . . . 1 . . 1 1 Network Hub 1 | . . . . . . . . . . . . . 1 . . . . . . . . . . . . . . . Machines Repaired . | . . . . . . . . . . . . . . . . . . . . . . . . . . . . . Machines Dismantled . | . . . . . . . . . . . . . . . . . . . . . . . . . . . . . Machines Sabotaged . | . . . . . . . . . . . . . . . . . . . . . . . . . . . . . Overloaded Fab Kills . | . . . . . . . . . . . . . . . . . . . . . . . . . . . . . Hacking | -11 -10 -10 -9 -9 -8 -8 -8 -8 -6 -6 -6 -6 -6 -5 -5 -5 -5 -4 -4 -4 -4 -4 -3 -3 -3 -2 -2 -2 --------- Run | Yrd Mat Min Mat Min Mat Sto Rec Scr Fac Ext Cet Arc Hub Fac Upp Upp Zhi Pro Fac Upp Upp War Pro Res Qua Res Tes Frg Machines Accessed 118 | . 9 . 6 . 3 4 10 10 3 12 3 . 2 9 1 3 6 . 11 . . 2 . 9 3 2 1 9 Terminals 59 | . 7 . 6 . 3 3 6 . . 12 3 . 2 3 . 1 . . 4 . . . . 3 3 1 . 2 Fabricators 5 | . . . . . . . . . 1 . . . . 1 . . . . . . . . . . . . . 3 Repair Stations . | . . . . . . . . . . . . . . . . . . . . . . . . . . . . . Recycling Units 24 | . 2 . . . . . 4 . 2 . . . . 3 . . . . 5 . . . . 4 . 1 . 3 Scanalyzers 3 | . . . . . . . . . . . . . . 1 . . . . . . . . . 1 . . . 1 Garrison Access 6 | . . . . . . 1 . . . . . . . 1 . . . . 2 . . . . 1 . . 1 . Total Hacks 389 | . 31 . 20 . 7 13 36 83 6 29 8 . 2 30 1 3 19 . 38 . . 2 . 24 7 4 3 23 Successful 233 | . 20 . 12 . 2 6 23 83 2 12 2 . . 9 1 3 19 . 12 . . 2 . 10 3 1 1 10 Failed 153 | . 10 . 8 . 5 7 13 . 4 17 6 . 2 20 . . . . 26 . . . . 13 4 3 2 13 Catastrophic 34 | . 1 . . . 3 . . . 1 3 2 . 1 6 . . . . 6 . . . . 2 . 2 1 6 Database Lockouts 3 | . 1 . . . . . . . . . . . . 1 . . . . . . . . . 1 . . . . Manual 128 | . 17 . 16 . 6 7 13 . 5 3 1 . 2 12 . . . . 14 . . . . 13 5 1 1 12 Terminals 175 | . 27 . 20 . 7 10 26 . . 29 8 . 2 8 . 1 . . 11 . . . . 12 7 3 . 4 Fabricators 13 | . . . . . . . . . 1 . . . . 3 . . . . . . . . . . . . . 9 Repair Stations . | . . . . . . . . . . . . . . . . . . . . . . . . . . . . . Recycling Units 61 | . 4 . . . . . 10 . 5 . . . . 9 . . . . 19 . . . . 6 . 1 . 7 Scanalyzers 11 | . . . . . . . . . . . . . . 5 . . . . . . . . . 3 . . . 3 Garrison Access 22 | . . . . . . 3 . . . . . . . 5 . . . . 8 . . . . 3 . . 3 . Terminal Hacks 150 | . 9 . 5 . . 3 7 83 . 9 2 . . . 1 3 19 . 1 . . 2 . 3 1 . . 2 Record 99 | . 1 . . . . . 1 83 . . 2 . . . . 1 7 . . . . . . 1 1 . . 2 Part Schematic 8 | . . . . . . . 3 . . 1 . . . . . . 4 . . . . . . . . . . . Robot Schematic 1 | . . . . . . 1 . . . . . . . . . . . . . . . . . . . . . . Robot Analysis 6 | . 1 . 1 . . . . . . . . . . . . . 4 . . . . . . . . . . . Prototype ID Bank 6 | . . . . . . . . . . 2 . . . . . . 4 . . . . . . . . . . . Open Door 10 | . . . . . . 1 . . . 4 . . . . 1 2 . . . . . 2 . . . . . . Branch Access Points 2 | . 1 . 1 . . . . . . . . . . . . . . . . . . . . . . . . . Terminal Index 3 | . 1 . . . . . 1 . . . . . . . . . . . 1 . . . . . . . . . Recycling Unit Index 2 | . . . . . . . . . . 1 . . . . . . . . . . . . . 1 . . . . Alert Level 4 | . 2 . 1 . . . . . . 1 . . . . . . . . . . . . . . . . . . Unreport Threat 3 | . 1 . . . . . 2 . . . . . . . . . . . . . . . . . . . . . Transport Status 3 | . 2 . 1 . . . . . . . . . . . . . . . . . . . . . . . . . Hauler Manifests 2 | . . . 1 . . 1 . . . . . . . . . . . . . . . . . . . . . . Zone Layout 1 | . . . . . . . . . . . . . . . . . . . . . . . . 1 . . . . Fabricator Hacks 4 | . . . . . . . . . . . . . . . . . . . . . . . . . . . . 4 Load Schematic 3 | . . . . . . . . . . . . . . . . . . . . . . . . . . . . 3 Build 1 | . . . . . . . . . . . . . . . . . . . . . . . . . . . . 1 Repair Station Hacks . | . . . . . . . . . . . . . . . . . . . . . . . . . . . . . Recycling Unit Hacks 13 | . 2 . . . . . 5 . . . . . . 2 . . . . 4 . . . . . . . . . Report Inventory 8 | . 2 . . . . . 3 . . . . . . 1 . . . . 2 . . . . . . . . . Retrieve Matter 1 | . . . . . . . . . . . . . . 1 . . . . . . . . . . . . . . Retrieve Components 4 | . . . . . . . 2 . . . . . . . . . . . 2 . . . . . . . . . Scanalyzer 2 | . . . . . . . . . . . . . . 1 . . . . . . . . . 1 . . . . Retrieve Study 2 | . . . . . . . . . . . . . . 1 . . . . . . . . . 1 . . . . Garrison Access Hacks 1 | . . . . . . . . . . . . . . . . . . . 1 . . . . . . . . . Seal Access 1 | . . . . . . . . . . . . . . . . . . . 1 . . . . . . . . . Unauthorized Hacks 63 | . 9 . 7 . 2 3 11 . 2 3 . . . 6 . . . . 6 . . . . 6 2 1 1 4 Terminals 34 | . 7 . 7 . 2 3 7 . . 3 . . . 2 . . . . . . . . . 1 2 . . . Assimilate 1 | . . . . . . . . . . . . . . . . . . . . . . . . . 1 . . . Botnet 16 | . 2 . 2 . 2 1 2 . . 3 . . . 2 . . . . . . . . . 1 1 . . . Skim 17 | . 5 . 5 . . 2 5 . . . . . . . . . . . . . . . . . . . . . Fabricators 1 | . . . . . . . . . . . . . . . . . . . . . . . . . . . . 1 Recompile 1 | . . . . . . . . . . . . . . . . . . . . . . . . . . . . 1 Repair Stations . | . . . . . . . . . . . . . . . . . . . . . . . . . . . . . Recycling Units 24 | . 2 . . . . . 4 . 2 . . . . 3 . . . . 5 . . . . 4 . 1 . 3 Tunnel 6 | . 2 . . . . . 4 . . . . . . . . . . . . . . . . . . . . . Fedlink 18 | . . . . . . . . . 2 . . . . 3 . . . . 5 . . . . 4 . 1 . 3 Scanalyzers . | . . . . . . . . . . . . . . . . . . . . . . . . . . . . . Garrison Access 4 | . . . . . . . . . . . . . . 1 . . . . 1 . . . . 1 . . 1 . Jam 4 | . . . . . . . . . . . . . . 1 . . . . 1 . . . . 1 . . 1 . Data Cores Recovered 2 | . . . 2 . . . . . . . . . . . . . . . . . . . . . . . . . Used . | . . . . . . . . . . . . . . . . . . . . . . . . . . . . . Hacking Detections 71 | . 6 . 6 . 3 4 6 . 2 10 3 . 2 6 . . . . 6 . . . . 5 3 1 1 7 Full Trace Events 9 | . . . . . . 1 . . . 4 . . . . . . . . 1 . . . . 1 . 1 . 1 Feedback Events . | . . . . . . . . . . . . . . . . . . . . . . . . . . . . . Feedback Blocked . | . . . . . . . . . . . . . . . . . . . . . . . . . . . . . Robot Schematics Acquired 4 | . . . . . . 1 . . . . . . . . . . . . . . . . . . . . 3 . Robots Built 2 | . . . . . . . . . . . . . . . . . . . . . . . . . . . . 2 Authchips 1 | . . . . . . . . . . . . . . . . . . . . . . . . . . . . 1 Time 74 | . . . . . . . . . . . . . . . . . . . . . . . . . . . . 74 Total Robot Build Rating 18 | . . . . . . . . . . . . . . . . . . . . . . . . . . . . 18 Part Schematics Acquired 14 | . . . . . . . 3 . . 1 . . . . . . 4 . . . . . . . . . 6 . Parts Built . | . . . . . . . . . . . . . . . . . . . . . . . . . . . . . Authchips . | . . . . . . . . . . . . . . . . . . . . . . . . . . . . . Time . | . . . . . . . . . . . . . . . . . . . . . . . . . . . . . Total Part Build Rating . | . . . . . . . . . . . . . . . . . . . . . . . . . . . . . Part Studies Acquired 2 | . . . . . . . . . . . . . . 1 . . . . . . . . . 1 . . . . Parts Repaired . | . . . . . . . . . . . . . . . . . . . . . . . . . . . . . Time . | . . . . . . . . . . . . . . . . . . . . . . . . . . . . . Parts Recycled . | . . . . . . . . . . . . . . . . . . . . . . . . . . . . . Recycled Matter . | . . . . . . . . . . . . . . . . . . . . . . . . . . . . . Retrieved Matter . | . . . . . . . . . . . . . . . . . . . . . . . . . . . . . Retrieved Components 7 | . . . . . . . 3 . . . . . . . . . . . 4 . . . . . . . . . Parts Scanalyzed . | . . . . . . . . . . . . . . . . . . . . . . . . . . . . . Part Schematics Acquired . | . . . . . . . . . . . . . . . . . . . . . . . . . . . . . Parts Damaged . | . . . . . . . . . . . . . . . . . . . . . . . . . . . . . Bothacking | -11 -10 -10 -9 -9 -8 -8 -8 -8 -6 -6 -6 -6 -6 -5 -5 -5 -5 -4 -4 -4 -4 -4 -3 -3 -3 -2 -2 -2 ------------ Run | Yrd Mat Min Mat Min Mat Sto Rec Scr Fac Ext Cet Arc Hub Fac Upp Upp Zhi Pro Fac Upp Upp War Pro Res Qua Res Tes Frg Used RIF Installer . | . . . . . . . . . . . . . . . . . . . . . . . . . . . . . Robots Hacked . | . . . . . . . . . . . . . . . . . . . . . . . . . . . . . Non-combat . | . . . . . . . . . . . . . . . . . . . . . . . . . . . . . Combat . | . . . . . . . . . . . . . . . . . . . . . . . . . . . . . Robot Hacks Applied . | . . . . . . . . . . . . . . . . . . . . . . . . . . . . . Relay Couplers Released 7 | . . . . . . 2 . . . . . . . 3 . . . . . . . . . . . . 2 . Machine Destruction 4 | . . . . . . 2 . . . . . . . . . . . . . . . . . . . . 2 . Programmers 3 | . . . . . . . . . . . . . . 3 . . . . . . . . . . . . . . Fabnet Peak Effective % . | . . . . . . . . . . . . . . . . . . . . . . . . . . . . . Robots Rewired 13 | . . . . . . . . . . 3 . . . . . . . . . . . 5 2 . . . 3 . Allies Hacked 1 | . . . . . . . . . . . . . . . . . . . . . . . 1 . . . . . Hacks Repelled . | . . . . . . . . . . . . . . . . . . . . . . . . . . . . . Allies | -11 -10 -10 -9 -9 -8 -8 -8 -8 -6 -6 -6 -6 -6 -5 -5 -5 -5 -4 -4 -4 -4 -4 -3 -3 -3 -2 -2 -2 -------- Run | Yrd Mat Min Mat Min Mat Sto Rec Scr Fac Ext Cet Arc Hub Fac Upp Upp Zhi Pro Fac Upp Upp War Pro Res Qua Res Tes Frg Total Allies 28 | . . . . . . 2 . . . 9 5 . . . . . . . . . . 5 2 . . . 3 2 Largest Group 7 | . . . . . . 2 1 1 . 6 7 5 4 1 . . . . . . . 5 2 1 . . 3 2 Highest-Rated Group 678 | . . . . . . 62 26 26 . 223 678 474 315 96 . . . . . . . 275 128 49 . . 270 180 Highest-Rated Ally 159 | . . . . . . 31 26 26 . 159 159 159 96 96 . . . . . . . 64 64 49 . . 90 90 Initial UFD Resources 112 | . . . . . . . . . 24 38 38 38 38 40 56 56 56 59 59 79 79 79 82 82 100 102 112 112 Total Orders 7 | . . . . . . . . . . . . . . . . . . . 1 . . . . 3 . 2 . 1 STAY 1 | . . . . . . . . . . . . . . . . . . . . . . . . . . . . 1 EXPLORE 6 | . . . . . . . . . . . . . . . . . . . 1 . . . . 3 . 2 . . Ally Attacks 499 | . . . . . . 29 . . . 83 54 18 39 20 . . . . . . . 19 9 7 . . 138 83 Total Damage 17434 | . . . . . . 442 . . . 1508 1499 458 1148 614 . . . . . . . 829 983 1214 . . 5370 3369 Kills 74 | . . . . . . 3 . . . 7 8 3 8 5 . . . . . . . 1 3 7 . . 16 13 Allies Corrupted . | . . . . . . . . . . . . . . . . . . . . . . . . . . . . . Allies Melted . | . . . . . . . . . . . . . . . . . . . . . . . . . . . . . Intel | -11 -10 -10 -9 -9 -8 -8 -8 -8 -6 -6 -6 -6 -6 -5 -5 -5 -5 -4 -4 -4 -4 -4 -3 -3 -3 -2 -2 -2 ------- Run | Yrd Mat Min Mat Min Mat Sto Rec Scr Fac Ext Cet Arc Hub Fac Upp Upp Zhi Pro Fac Upp Upp War Pro Res Qua Res Tes Frg Active Infowar (turns) 13993 | 9 1157 772 973 676 471 . . 166 70 80 . . 206 957 708 661 218 428 1466 276 360 539 662 926 344 550 632 686 Sensors 6851 | . . . . . . . . . . . . . . . 708 661 218 426 1443 276 360 533 593 926 344 363 . . Terrain 1638 | 2 250 . . . . . . . . . . . . . . . . . . . . . . . . 68 632 686 Structural 6102 | . . . . . . . . 166 70 80 . . 206 957 . . . 2 1381 276 360 513 662 926 338 165 . . Seismic 5145 | 9 1157 772 973 676 471 . . . . . . . . . . . . . . . . . . . . 183 632 272 ECM 40 | . . . . . . . . . . . . . . . . . . . . . . . . . . . 40 . Robot Analysis Total 6 | . 1 . 1 . . . . . . . . . . . . . 4 . . . . . . . . . . . Derelict Logs Recovered 6 | . . . . 1 . . . . . . . . . . . 1 . 3 . . 1 . . . . . . . Drone Launches 8 | . . . . . . . . . . . . . . . . . . . 3 . . . . 3 . 2 . . Drone Recoveries 4 | . . . . . . . . . . . . . . . . . . . . . . . . 2 . 2 . . Exploration | -11 -10 -10 -9 -9 -8 -8 -8 -8 -6 -6 -6 -6 -6 -5 -5 -5 -5 -4 -4 -4 -4 -4 -3 -3 -3 -2 -2 -2 ------------- Run | Yrd Mat Min Mat Min Mat Sto Rec Scr Fac Ext Cet Arc Hub Fac Upp Upp Zhi Pro Fac Upp Upp War Pro Res Qua Res Tes Frg Turns Passed 23367 | 87 1157 772 973 676 657 410 883 2114 481 1972 428 117 285 1286 830 829 220 564 1466 276 360 899 662 926 344 626 632 2435 Spaces Moved 15418 | 52 593 376 576 506 306 161 586 1707 319 1287 277 71 148 787 630 599 165 397 880 227 242 596 432 735 281 343 428 1711 Core 12 | 12 . . . . . . . . . . . . . . . . . . . . . . . . . . . . Treads . | . . . . . . . . . . . . . . . . . . . . . . . . . . . . . Legs 15403 | 40 593 376 576 506 306 158 586 1707 319 1287 277 71 148 787 630 599 165 397 880 227 242 596 432 735 281 343 428 1711 Wheels . | . . . . . . . . . . . . . . . . . . . . . . . . . . . . . Hover . | . . . . . . . . . . . . . . . . . . . . . . . . . . . . . Flight 3 | . . . . . . 3 . . . . . . . . . . . . . . . . . . . . . . Fastest Speed 50 | 50 120 190 120 120 120 120 120 120 112 112 120 120 120 120 120 120 120 120 120 120 120 106 104 95 95 105 106 103 Average Speed 120 | 116 165 190 129 120 122 128 121 121 112 120 120 120 120 120 120 120 120 120 120 120 120 117 105 95 101 120 110 108 Slowest Speed 327 | 150 190 190 190 120 190 327 122 122 118 122 122 120 120 120 120 120 120 120 124 120 120 190 106 104 110 175 111 185 Overloaded Moves . | . . . . . . . . . . . . . . . . . . . . . . . . . . . . . Propulsion Burnouts . | . . . . . . . . . . . . . . . . . . . . . . . . . . . . . Robots Hopped . | . . . . . . . . . . . . . . . . . . . . . . . . . . . . . Potential Cave-ins 9 | . . . . . . . . . . . . . . 2 . . . . . . . . . . 5 . 2 . Cave-ins Triggered . | . . . . . . . . . . . . . . . . . . . . . . . . . . . . . Teleports 1 | . . . . . . . . . . . . . . . . . . . . . . . . . . . . 1 Exploration Rate (%) 52 | 3 91 73 54 97 30 25 85 93 10 97 78 69 25 23 76 73 60 54 32 45 42 78 48 31 44 11 34 47 Regions Visited 28 Branch Regions 20 Pre-discovered Areas 17 | . 2 . 1 . . . 4 5 1 . . . . . . . 3 1 . . . . . . . . . . Known Exits Taken 21 | . 1 . 1 1 1 1 1 1 . . . . 1 1 1 1 1 1 1 1 1 1 1 1 1 1 . . Unknown Exits Taken 7 | 1 . 1 . . . . . . 1 1 1 1 . . . . . . . . . . . . . . 1 . Scrap Searched 25 | . . 1 . 3 . . . 5 . . . . . . 2 4 . 4 . 2 2 . 2 . . . . . Spaces Dug 137 | . 2 1 2 . . 3 1 . 9 . . . 2 16 . . . 8 20 1 7 . 3 5 11 11 8 27 Terrain Destroyed 1048 | . 2 4 2 36 10 48 1 . 9 2 1 1 189 87 13 8 . 20 120 2 11 10 43 71 17 45 17 279 Melee 18 | . 2 1 2 . . 3 1 . 9 . . . . . . . . . . . . . . . . . . . Projectile 365 | . . 3 . . . 2 . . . 2 1 1 14 40 13 8 . 20 58 2 7 10 29 23 17 41 17 57 AOE 664 | . . . . 36 10 43 . . . . . . 175 46 . . . . 62 . 4 . 14 48 . 4 . 222 Terrain Rammed . | . . . . . . . . . . . . . . . . . . . . . . . . . . . . . Walls Destroyed . | . . . . . . . . . . . . . . . . . . . . . . . . . . . . . Machines Disabled . | . . . . . . . . . . . . . . . . . . . . . . . . . . . . . Actions | -11 -10 -10 -9 -9 -8 -8 -8 -8 -6 -6 -6 -6 -6 -5 -5 -5 -5 -4 -4 -4 -4 -4 -3 -3 -3 -2 -2 -2 --------- Run | Yrd Mat Min Mat Min Mat Sto Rec Scr Fac Ext Cet Arc Hub Fac Upp Upp Zhi Pro Fac Upp Upp War Pro Res Qua Res Tes Frg Total 18438 | 66 685 404 703 530 464 300 735 1748 391 1554 342 91 218 989 672 661 190 446 1129 229 300 746 545 880 321 475 554 2070 Wait 958 | . 17 12 33 3 48 40 122 6 12 27 9 10 35 79 25 19 . 21 96 . 43 24 23 73 7 55 29 90 Move 15390 | 51 592 375 575 505 305 160 585 1706 318 1286 276 70 147 786 629 598 164 396 879 226 241 595 431 734 280 342 427 1711 Hop . | . . . . . . . . . . . . . . . . . . . . . . . . . . . . . Pick Up 133 | 3 8 . 9 . 7 3 2 8 5 14 7 1 . 6 . 2 1 1 11 2 . 6 3 4 4 5 8 13 Fast Attach 160 | 7 3 . 8 . 6 12 . 3 5 11 8 . 5 5 . 6 7 1 12 . 2 8 2 8 4 4 9 24 Attach 75 | . 1 . 2 . 2 6 . . 3 5 . . . 4 . . 3 2 7 . . . 1 1 . 17 1 20 Detach 52 | . . . 1 . . 3 . . . 5 1 . 1 1 . . 6 . 2 . . 1 . . . 5 5 21 Swap 253 | 1 10 2 7 2 16 11 7 9 9 43 5 1 7 16 5 8 1 8 20 . 2 7 4 10 4 4 10 24 Drop 262 | . 10 . 20 . 12 6 4 16 7 42 16 2 5 13 . 7 8 1 13 . 2 19 5 12 10 2 12 18 Fire 921 | 4 42 13 46 20 50 50 12 . 21 82 20 7 18 79 13 20 . 16 88 1 10 22 39 37 12 41 19 139 Melee 58 | . 2 2 2 . 18 4 3 . 11 16 . . . . . . . . . . . . . . . . . . Ram . | . . . . . . . . . . . . . . . . . . . . . . . . . . . . . Kick 2 | . . . . . . . . . . . . . . . . . . . 1 . . . . 1 . . . . Crush . | . . . . . . . . . . . . . . . . . . . . . . . . . . . . . Escape Stasis 7 | . . . . . . 5 . . . 2 . . . . . . . . . . . . . . . . . . Rewire 157 | . . . . . . . . . . 21 . . . . . 1 . . . . . 64 37 . . . 34 . Trap . | . . . . . . . . . . . . . . . . . . . . . . . . . . . . . Miscellaneous 10 | . . . . . . . . . . . . . . . . . . . . . . . . . . . . 10 Route ------- -11/Scrapyard -10/Materials (discovered 6 exits: *Mat x3 / *Min x2 / Sub) -10/Mines (discovered 2 exits: *Mat x2) -9/Materials (discovered 4 exits: *Mat x2 / *Min x2) -9/Mines (discovered 2 exits: *Mat x2) -8/Materials -8/Storage (discovered 2 exits: Fac / *Rec) -8/Recycling (discovered 2 exits: Fac / *Scr) -8/Scraptown (discovered 2 exits: *Fac x2) -6/Factory (discovered 4 exits: Fac / Low x2 / *Ext) -6/Extension (discovered 2 exits: *Fac / *Cet) -6/Cetus (discovered 2 exits: *Fac / [*Arc]) -6/Archives (discovered 2 exits: *Hub x2) -6/Hub_04(d) -5/Factory (discovered 2 exits: *Fac / *Upp) -5/Upper Caves -5/Upper Caves (discovered 2 exits: *Fac / *Zhi) -5/Zhirov -4/Proximity Caves -4/Factory (discovered 2 exits: *Res / *Upp) -4/Upper Caves -4/Upper Caves -4/Warlord -3/Proximity Caves -3/Research (discovered 2 exits: *Res / *Qua) -3/Quarantine -2/Research -2/Testing (discovered 2 exits: [*Sec] / *Frg) -2/Protoforge History --------- Turn | Location | Event 14 | -11/Scrapyard | Discovered new exit (range 16) 88 | -11/Scrapyard | Entered Materials 312 | -10/Materials | Build established: Mutant 371 | -10/Materials | Discovered new exit (range 15) 530 | -10/Materials | Identified exit to Mines 544 | -10/Materials | Discovered new exit (range 6) 797 | -10/Materials | Central database locked down 818 | -10/Materials | Discovered new exit (range 9) 1056 | -10/Materials | Learned location of 1 exit from Recycling 1095 | -10/Materials | Discovered new exit (range 14) 1134 | -10/Materials | Loaded intel: 15 trap records 1175 | -10/Materials | Learned Storage stockpile data 1189 | -10/Materials | Identified exit to Subcaves 1189 | -10/Materials | Learned location of 2 exits from Materials 1211 | -10/Materials | Learned Materials trap positions 1245 | -10/Materials | Entered Mines 1397 | -10/Mines | Deemed a non-threat by the Exiles lab entrance 1432 | -10/Mines | Discovered new exit (range 7) 1696 | -10/Mines | Discovered new exit (range 13) 1868 | -10/Mines | Assembled infested the area 2017 | -10/Mines | Entered Materials 2017 | -9/Materials | Evolved 2 slots: Propulsion x1, Weapon x1 2018 | -9/Materials | Identified exit to Mines 2018 | -9/Materials | Identified exit to Materials 2019 | -9/Materials | Loaded intel: 19 trap records 2335 | -9/Materials | Build established: Gunner 2454 | -9/Materials | Discovered exit to Materials (range 16) 2525 | -9/Materials | Learned location of 1 exit from Storage 2573 | -9/Materials | Learned Storage trap positions 2612 | -9/Materials | Learned Storage trap positions 2639 | -9/Materials | Learned Storage emergency access door positions 2658 | -9/Materials | Learned location of 1 exit from Recycling 2726 | -9/Materials | Learned location of 1 exit from Storage 2990 | -9/Materials | Entered Mines 3026 | -9/Mines | Discovered exit to Materials (range 7) 3107 | -9/Mines | Found a hidden stash of uninstalled traps 3120 | -9/Mines | Received a Rocket Launcher from a helpful Derelict 3188 | -9/Mines | Discovered exit to Materials (range 13) 3666 | -9/Mines | Entered Materials 3666 | -8/Materials | Evolved 2 slots: Propulsion x1, Utility x1 3667 | -8/Materials | Identified exit to Storage 3884 | -8/Materials | Destroyed 9 combat bots 4323 | -8/Materials | Entered Storage 4324 | -8/Storage | Identified exit to Factory 4324 | -8/Storage | Identified exit to Recycling 4325 | -8/Storage | Loaded intel: 16 trap records 4585 | -8/Storage | Lost 8 parts (1p3n1u3w) 4618 | -8/Storage | Met a pair of Derelict thieves 4713 | -8/Storage | Used back door to open Recycling access 4723 | -8/Storage | First assault squad dispatched 4733 | -8/Storage | Entered Recycling 4733 | -8/Recycling | Accompanied by 1 ally 4734 | -8/Recycling | Identified exit to Scraptown 4734 | -8/Recycling | Identified exit to Factory 5349 | -8/Recycling | Learned 4 Lower Caves zone layouts 5397 | -8/Recycling | Learned Factory stockpile data 5437 | -8/Recycling | Learned Storage stockpile data 5466 | -8/Recycling | Learned location of 1 exit from Recycling 5486 | -8/Recycling | Learned Storage terminal intel 5492 | -8/Recycling | Scanned before Scraplab entrance 5513 | -8/Recycling | Learned Factory scanalyzer intel 5544 | -8/Recycling | Loaded intel: 6 recycling unit locations 5587 | -8/Recycling | Learned Factory emergency access door positions 5604 | -8/Recycling | Entered Scraplab 5616 | -8/Recycling | Entered Scraptown 5616 | -8/Scraptown | Accompanied by 1 ally 5648 | -8/Scraptown | Heard Great Nut preacher, LISTEN AND RECITE! 5917 | -8/Scraptown | Discovered exit to Factory (range 7) 6024 | -8/Scraptown | Visited Cyclists 6065 | -8/Scraptown | Visited Comm Corps 6358 | -8/Scraptown | Visited Shadow of the Wyrm 6387 | -8/Scraptown | Visited Red Mages 6473 | -8/Scraptown | Visited Scrapoid Research Area 6511 | -8/Scraptown | Visited Cave Peace 6575 | -8/Scraptown | Visited UFD Registry 6575 | -8/Scraptown | Registered with UFD as "Microkit" 6662 | -8/Scraptown | Entered Cyclist Reading Room 6772 | -8/Scraptown | Visited Supply Room 6801 | -8/Scraptown | Visited Derelict Rescue Squad 6833 | -8/Scraptown | Visited Research Penetration Think Tank 6889 | -8/Scraptown | Discovered exit to Factory (range 3) 6910 | -8/Scraptown | Found Scrap Suit 6980 | -8/Scraptown | Visited Cartography Club 7010 | -8/Scraptown | Found Surveybot 17 Chip 7072 | -8/Scraptown | Learned location of Lower Caves (-7) 7072 | -8/Scraptown | Learned location of Testing (-2) 7072 | -8/Scraptown | Learned location of Quarantine (-3) 7072 | -8/Scraptown | Learned 20 Factory zone layouts 7072 | -8/Scraptown | Learned 8 Research zone layouts 7072 | -8/Scraptown | Learned 4 Storage zone layouts 7072 | -8/Scraptown | Learned 12 Lower Caves zone layouts 7072 | -8/Scraptown | Learned 12 Proximity Caves zone layouts 7072 | -8/Scraptown | Learned Research emergency access door positions 7072 | -8/Scraptown | Learned location of 1 exit from Lower Caves 7072 | -8/Scraptown | Learned location of 2 exits from Lower Caves 7100 | -8/Scraptown | Found Deep Structural Scanner 7139 | -8/Scraptown | Visited DA-N13 Charitable Foundation 7152 | -8/Scraptown | Found DCF Scrap (28 items) 7205 | -8/Scraptown | Visited Scrap Suit Storage 7428 | -8/Scraptown | Visited Curators Association 7475 | -8/Scraptown | Visited LU-1G1's Boring Crew 7530 | -8/Scraptown | Visited Junk Cannon Lab 7542 | -8/Scraptown | Found Prototype Special Weapon 7542 | -8/Scraptown | Identified Junk Cannon 7650 | -8/Scraptown | Met Optimus 7650 | -8/Scraptown | Accepted into 0bPrime 7730 | -8/Scraptown | Entered Factory 7730 | -6/Factory | Evolved 4 slots: Power x1, Propulsion x1, Utility x2 7731 | -6/Factory | Identified exit to Lower Caves 7732 | -6/Factory | Identified exit to Factory 7735 | -6/Factory | Loaded intel: 4 scanalyzer locations 7803 | -6/Factory | Loaded intel: 8 recycling unit locations 7888 | -6/Factory | Learned location of Protoforge (-2) 8193 | -6/Factory | Discovered new exit (range 15) 8211 | -6/Factory | Entered Extension 8433 | -6/Extension | Rescued a captive Derelict 8700 | -6/Extension | Rescued a captive Derelict 8707 | -6/Extension | Rescued a captive Derelict 9071 | -6/Extension | Spotted B-75 Beast 9101 | -6/Extension | Allies destroyed B-75 Beast 9107 | -6/Extension | Spotted B-75 Beast 9125 | -6/Extension | Destroyed B-75 Beast 9143 | -6/Extension | Lost 3 allies 9308 | -6/Extension | Build established: Scavenger-Tank 9686 | -6/Extension | Rescued a captive Derelict 9687 | -6/Extension | Rescued a captive Derelict 9944 | -6/Extension | Rescued A7 10159 | -6/Extension | Discovered exit to Factory (range 16) 10159 | -6/Extension | Discovered new exit (range 16) 10183 | -6/Extension | Entered Cetus 10183 | -6/Cetus | Accompanied by 3 allies (A7) 10188 | -6/Cetus | Acquired a Cetus Manufacturing Module code from A7 10199 | -6/Cetus | Spotted Cetus Guard 10199 | -6/Cetus | Spotted Cetus Guard 10203 | -6/Cetus | Spotted Cetus Guard 10203 | -6/Cetus | Spotted Cetus Guard 10215 | -6/Cetus | Allies destroyed Cetus Guard 10221 | -6/Cetus | Allies destroyed Cetus Guard 10223 | -6/Cetus | Allies destroyed Cetus Guard 10223 | -6/Cetus | Allies destroyed Cetus Guard 10326 | -6/Cetus | Started Cetus Manufacturing Module 10348 | -6/Cetus | Escorted A7 to Cetus Mainframe 10351 | -6/Cetus | Manufactured an Enhanced Grunt 10376 | -6/Cetus | Manufactured an Enhanced Grunt 10401 | -6/Cetus | Manufactured an Enhanced Grunt 10426 | -6/Cetus | Manufactured an Enhanced Grunt 10438 | -6/Cetus | Discovered new exit (range 15) 10451 | -6/Cetus | Manufactured an Enhanced Grunt 10460 | -6/Cetus | Spotted Cetus Guard 10461 | -6/Cetus | Spotted Cetus Guard 10464 | -6/Cetus | Spotted Cetus Guard 10464 | -6/Cetus | Spotted Cetus Guard 10470 | -6/Cetus | Allies destroyed Cetus Guard 10482 | -6/Cetus | Allies destroyed Cetus Guard 10485 | -6/Cetus | Destroyed Cetus Guard 10488 | -6/Cetus | Destroyed Cetus Guard 10491 | -6/Cetus | Build established: Scavenger-Gunner 10513 | -6/Cetus | Discovered exit to Factory (range 16) 10519 | -6/Cetus | Met Revision 17 10611 | -6/Cetus | Entered Archives 10611 | -6/Archives | Accompanied by 5 allies (A7) 10616 | -6/Archives | Received a hacking code to weaken MAIN.C 10653 | -6/Archives | Discovered new exit (range 16) 10690 | -6/Archives | Discovered new exit (range 15) 10728 | -6/Archives | Entered Hub_04(d) 10728 | -6/Hub_04(d) | Accompanied by 4 allies 10759 | -6/Hub_04(d) | Core integrity fell below 50% 10925 | -6/Hub_04(d) | Discovered exit to Factory (range 13) 10990 | -6/Hub_04(d) | Network Hub disabled 11013 | -6/Hub_04(d) | Entered Factory 11013 | -5/Factory | Accompanied by 1 ally 11013 | -5/Factory | Evolved 2 slots: Utility x2 11123 | -5/Factory | Allied Derelicts emerged from ambush trap array 11197 | -5/Factory | Loaded intel: 8 recycling unit locations 11294 | -5/Factory | Build established: Scavenger-Tank 11785 | -5/Factory | Central database locked down 11904 | -5/Factory | Discovered new exit (range 17) 12204 | -5/Factory | Discovered new exit (range 14) 12297 | -5/Factory | Identified exit to Upper Caves 12299 | -5/Factory | Entered Upper Caves 12300 | -5/Upper Caves | Encountered a Warlord checkpoint 12963 | -5/Upper Caves | Discovered new exit (range 7) 12969 | -5/Upper Caves | Identified exit to Upper Caves 13129 | -5/Upper Caves | Entered another Upper Caves area 13131 | -5/Upper Caves | Attracted the attention of an 0b10 checkpoint 13134 | -5/Upper Caves | Discovered new exit (range 11) 13171 | -5/Upper Caves | Identified exit to Factory 13664 | -5/Upper Caves | Learned Factory emergency access door positions 13732 | -5/Upper Caves | Discovered new exit (range 15) 13762 | -5/Upper Caves | Identified exit to Zhirov 13958 | -5/Upper Caves | Entered Zhirov 13959 | -5/Zhirov | Identified exit to Proximity Caves 13982 | -5/Zhirov | Met Zhirov 14008 | -5/Zhirov | Learned location of Command (-1) 14015 | -5/Zhirov | Zhirov requested help retrieving the SGEMP Prototype 14038 | -5/Zhirov | Found Alien Artifact 14058 | -5/Zhirov | Found Alien Artifact 14058 | -5/Zhirov | Identified Integrated Dissipator 14058 | -5/Zhirov | Installed Integrated Dissipator, increased core heat dissipation (+20) 14178 | -5/Zhirov | Entered Proximity Caves 14262 | -4/Proximity Caves | Learned Research garrison access intel 14378 | -4/Proximity Caves | Attracted the attention of an 0b10 checkpoint 14502 | -4/Proximity Caves | Spotter reported a threat 14586 | -4/Proximity Caves | Learned Research stockpile data 14641 | -4/Proximity Caves | Spotter reported a threat 14742 | -4/Proximity Caves | Entered Factory 14742 | -4/Factory | Evolved 2 slots: Utility x2 14772 | -4/Factory | Watched by a mysterious "MATRIX" hacker. 14874 | -4/Factory | Discovered new exit (range 9) 14883 | -4/Factory | Identified exit to Research 14992 | -4/Factory | Search patrols dispatched 15168 | -4/Factory | Loaded intel: 8 recycling unit locations 15391 | -4/Factory | Lost 3 parts (1n1u1w) 15518 | -4/Factory | Build established: Scavenger-Skirmisher 15951 | -4/Factory | Discovered new exit (range 6) 16207 | -4/Factory | Identified exit to Upper Caves 16208 | -4/Factory | Entered Upper Caves 16455 | -4/Upper Caves | Discovered new exit (range 18) 16481 | -4/Upper Caves | Identified exit to Upper Caves 16484 | -4/Upper Caves | Entered another Upper Caves area 16591 | -4/Upper Caves | Spotted B-86 Titan 16828 | -4/Upper Caves | Discovered new exit (range 13) 16842 | -4/Upper Caves | Identified exit to Warlord 16844 | -4/Upper Caves | Entered Warlord 16884 | -4/Warlord | System corruption cleaned by Quarantine Array 17116 | -4/Warlord | Visited the Vortex Lab 17126 | -4/Warlord | Warlord's base attacked by MAIN.C 17128 | -4/Warlord | Found Prototype Energy Cannon 17130 | -4/Warlord | Found Prototype Energy Cannon 17349 | -4/Warlord | Found Prototype Reactor 17349 | -4/Warlord | Identified Vortex Chain Reactor 17379 | -4/Warlord | Found Prototype Device 17379 | -4/Warlord | Identified Thermal Barrier 17390 | -4/Warlord | Found Prototype Processor 17476 | -4/Warlord | Warlord forces counterattacked 17499 | -4/Warlord | Rebuked by Warlord 17538 | -4/Warlord | Spotted Executioner 17586 | -4/Warlord | Lost 6 allies 17589 | -4/Warlord | Spotted Executioner 17596 | -4/Warlord | Spotted Executioner 17611 | -4/Warlord | Build established: Scavenger-Tank 17667 | -4/Warlord | P-70 Sage assimilated allied JY-ARI(g) 17668 | -4/Warlord | P-70 Sage assimilated allied GE-JQX(g) 17672 | -4/Warlord | P-70 Sage assimilated allied Sentinel 7b 17687 | -4/Warlord | Discovered new exit (range 15) 17703 | -4/Warlord | Lost 10 allies 17711 | -4/Warlord | Spotted Executioner 17721 | -4/Warlord | Identified exit to Proximity Caves 17743 | -4/Warlord | Entered Proximity Caves 17743 | -3/Proximity Caves | Accompanied by 2 allies 17748 | -3/Proximity Caves | Spotter reported a threat 17768 | -3/Proximity Caves | Lost 9 allies 17769 | -3/Proximity Caves | Spotted B-86 Titan 18030 | -3/Proximity Caves | Spotter reported a threat 18116 | -3/Proximity Caves | Build established: Scavenger-Skirmisher 18265 | -3/Proximity Caves | Found Prototype Launcher 18265 | -3/Proximity Caves | Identified Mni. Smartbomb Launcher 18383 | -3/Proximity Caves | Discovered exit to Research (range 16) 18405 | -3/Proximity Caves | Entered Research 18405 | -3/Research | Accompanied by 1 ally 18405 | -3/Research | Evolved 2 slots: Propulsion x1, Utility x1 18405 | -3/Research | Identified Exp. Targeting Computer 18406 | -3/Research | Identified exit to Quarantine 18409 | -3/Research | Loaded intel: 4 garrison access locations 18430 | -3/Research | Central database locked down 18515 | -3/Research | Discovered new exit (range 55) 18605 | -3/Research | Revision forces began assault on 0b10 18699 | -3/Research | Met up with Revision 17++ 18751 | -3/Research | Loaded intel: 5 recycling unit locations 18945 | -3/Research | Build established: Tank 19042 | -3/Research | Lost 3 allies 19105 | -3/Research | Research terminal network offline 19331 | -3/Research | Entered Quarantine 19339 | -3/Quarantine | Cryocooling Duct disabled 19354 | -3/Quarantine | Ambient heat levels rising (+20) 19354 | -3/Quarantine | Non-combat units ordered to evacuate 19358 | -3/Quarantine | Found Alien Artifact 19477 | -3/Quarantine | Found Alien Artifact 19477 | -3/Quarantine | Identified Phase Redirector 19497 | -3/Quarantine | Found Alien Energy Cannon 19497 | -3/Quarantine | Identified Core Cannon 19564 | -3/Quarantine | Found Alien Artifact 19564 | -3/Quarantine | Identified Core Reset Matrix 19564 | -3/Quarantine | Identified Subatomic Replicator 19564 | -3/Quarantine | Identified Transdimensional Reconstructor 19564 | -3/Quarantine | Used Core Reset Matrix 19568 | -3/Quarantine | Detected hypermatrix surge 19568 | -3/Quarantine | Sensed 10 artifacts in vicinity 19651 | -3/Quarantine | Discovered new exit (range 13) 19668 | -3/Quarantine | Identified exit to Research 19675 | -3/Quarantine | Entered Research 19675 | -2/Research | Evolved 2 slots: Utility x1, Weapon x1 19678 | -2/Research | Identified Vortex Cannon (x2) 19749 | -2/Research | Loaded intel: 5 recycling unit locations 19894 | -2/Research | Build established: Alien-Tank 20111 | -2/Research | Lost 9 parts (3n5u1w) 20175 | -2/Research | First assault squad dispatched 20199 | -2/Research | Discovered new exit (range 10) 20215 | -2/Research | Identified exit to Testing 20268 | -2/Research | Found Prototype Device 20268 | -2/Research | Identified Adv. Particle Accelerator 20301 | -2/Research | Entered Testing 20411 | -2/Testing | Spotted Alpha 7 20418 | -2/Testing | Build established: Scavenger-Gunner 20418 | -2/Testing | Destroyed Alpha 7 20436 | -2/Testing | Found Prototype Energy Gun 20436 | -2/Testing | Identified Enh. Gamma Rifle 20473 | -2/Testing | Rewired X4-T7E(L) 20481 | -2/Testing | Rewired VS-0JZ(L) 20493 | -2/Testing | Rewired 66-CN0(L) 20577 | -2/Testing | Found Prototype Protection 20648 | -2/Testing | Found Prototype Launcher 20649 | -2/Testing | Identified Z-bomb Delivery System 20801 | -2/Testing | First assault squad dispatched 20802 | -2/Testing | Spotted Fortress 20822 | -2/Testing | Allies destroyed Fortress 20827 | -2/Testing | Found Prototype Device 20827 | -2/Testing | Identified Exp. EM Shield 20840 | -2/Testing | Found Thermal Barrier 20917 | -2/Testing | Discovered new exit (range 16) 20926 | -2/Testing | Discovered new exit (range 8) 20933 | -2/Testing | Entered Protoforge 20933 | -2/Protoforge | Accompanied by 2 allies 20934 | -2/Protoforge | Sensed 2 artifacts in vicinity 20959 | -2/Protoforge | Superfortress began startup sequence 21183 | -2/Protoforge | First assault squad dispatched 21230 | -2/Protoforge | Additional patrols dispatched to research labs 21230 | -2/Protoforge | Spotted Decapitator 21232 | -2/Protoforge | System corruption reached 10% 21232 | -2/Protoforge | Spotted Decapitator 21232 | -2/Protoforge | Warped through subspace 21251 | -2/Protoforge | Found Prototype Storage 21251 | -2/Protoforge | Identified Cep. NT7 Matterbank 21270 | -2/Protoforge | Lost 4 parts (1n3u) 21346 | -2/Protoforge | Used Subatomic Replicator to replicate Prototype Protection 21351 | -2/Protoforge | Identified SHELL Armor (x2) 21368 | -2/Protoforge | Spotted EXE-6 21369 | -2/Protoforge | Spotted EXE-6 21389 | -2/Protoforge | Destroyed EXE-6 21401 | -2/Protoforge | Destroyed EXE-6 21414 | -2/Protoforge | Found Prototype Processor 21414 | -2/Protoforge | Identified Exp. Core Analyzer 21420 | -2/Protoforge | Fabricated H-88 Terminator? 21455 | -2/Protoforge | UFD initiated attack on Protoforge (Readiness: High) 21455 | -2/Protoforge | Loaded intel: 3 recycling unit locations 21494 | -2/Protoforge | Optimus greeted in Protoforge 21597 | -2/Protoforge | Met 7R-MNS 21675 | -2/Protoforge | Spotted AP7-3 21676 | -2/Protoforge | Destroyed AP7-3 21689 | -2/Protoforge | Spotted AP7-3 21754 | -2/Protoforge | UFD reported confirmed Drillbomb installation 21792 | -2/Protoforge | Spotted Striker 21794 | -2/Protoforge | Spotted Executioner 21795 | -2/Protoforge | Spotted Executioner 21796 | -2/Protoforge | Spotted Striker 21819 | -2/Protoforge | Spotted Hotshot 21821 | -2/Protoforge | Spotted Hotshot 21823 | -2/Protoforge | Destroyed Hotshot 21844 | -2/Protoforge | Destroyed 7 combat bots 21845 | -2/Protoforge | Spotted B-90 Cyclops 21862 | -2/Protoforge | Lost 13 allies 21874 | -2/Protoforge | Spotted Striker 21889 | -2/Protoforge | Core integrity fell below 50% 21909 | -2/Protoforge | Spotted Striker 21909 | -2/Protoforge | Spotted Executioner 21913 | -2/Protoforge | Destroyed Executioner 21915 | -2/Protoforge | Destroyed Striker 21937 | -2/Protoforge | UFD reported confirmed Drillbomb installation 21955 | -2/Protoforge | Spotted Striker 21973 | -2/Protoforge | Spotted Striker 21975 | -2/Protoforge | Destroyed Striker 21978 | -2/Protoforge | Spotted Striker 21985 | -2/Protoforge | Spotted Executioner 22025 | -2/Protoforge | UFD reported confirmed Drillbomb installation 22047 | -2/Protoforge | Spotted Striker 22052 | -2/Protoforge | Spotted Striker 22086 | -2/Protoforge | Spotted Executioner 22087 | -2/Protoforge | Lost 4 allies 22095 | -2/Protoforge | Spotted Striker 22148 | -2/Protoforge | Lost 4 allies 22166 | -2/Protoforge | Spotted Hotshot 22167 | -2/Protoforge | Spotted Hotshot 22177 | -2/Protoforge | Spotted Striker 22177 | -2/Protoforge | Spotted Executioner 22178 | -2/Protoforge | Destroyed 02F13-K 22180 | -2/Protoforge | Destroyed Striker 22189 | -2/Protoforge | Destroyed Executioner 22190 | -2/Protoforge | Spotted Executioner 22191 | -2/Protoforge | Spotted Executioner 22197 | -2/Protoforge | Destroyed Executioner 22209 | -2/Protoforge | Destroyed Executioner 22214 | -2/Protoforge | Lost 4 allies 22225 | -2/Protoforge | Destroyed Hotshot 22246 | -2/Protoforge | Destroyed 13 combat bots 22265 | -2/Protoforge | UFD reported confirmed Drillbomb installation 22295 | -2/Protoforge | Destroyed Hotshot 22328 | -2/Protoforge | Spotted Executioner 22330 | -2/Protoforge | Spotted Executioner 22331 | -2/Protoforge | Spotted Striker 22338 | -2/Protoforge | Destroyed Executioner 22345 | -2/Protoforge | Spotted Striker 22345 | -2/Protoforge | Destroyed Striker 22349 | -2/Protoforge | Spotted Striker 22372 | -2/Protoforge | Destroyed Striker 22376 | -2/Protoforge | Lost 6 allies 22396 | -2/Protoforge | UFD reported confirmed Drillbomb installation 22428 | -2/Protoforge | Spotted Striker 22429 | -2/Protoforge | Spotted Striker 22449 | -2/Protoforge | Found Exp. Targeting Computer 22453 | -2/Protoforge | Spotted Striker 22457 | -2/Protoforge | Spotted Hotshot 22458 | -2/Protoforge | Destroyed Hotshot 22460 | -2/Protoforge | Spotted Executioner 22461 | -2/Protoforge | Destroyed Executioner 22461 | -2/Protoforge | Spotted Hotshot 22461 | -2/Protoforge | Destroyed Hotshot 22463 | -2/Protoforge | Destroyed Striker 22488 | -2/Protoforge | Destroyed Executioner 22509 | -2/Protoforge | Destroyed 19 combat bots 22525 | -2/Protoforge | Lost 3 allies 22569 | -2/Protoforge | Spotted Executioner 22569 | -2/Protoforge | Spotted Executioner 22572 | -2/Protoforge | Destroyed Executioner 22574 | -2/Protoforge | Destroyed Executioner 22578 | -2/Protoforge | Spotted Executioner 22583 | -2/Protoforge | Destroyed Executioner 22587 | -2/Protoforge | Spotted Executioner 22589 | -2/Protoforge | Destroyed Executioner 22610 | -2/Protoforge | Destroyed 11 combat bots 22670 | -2/Protoforge | Spotted Striker 22674 | -2/Protoforge | Spotted Striker 22678 | -2/Protoforge | Spotted Executioner 22682 | -2/Protoforge | Destroyed Striker 22710 | -2/Protoforge | Core integrity fell below 20% 22717 | -2/Protoforge | Lost 9 allies 22724 | -2/Protoforge | Lost 3 parts (1p2w) 22839 | -2/Protoforge | UFD reported confirmed Drillbomb installation 22855 | -2/Protoforge | Found UFD Drillbomb 22906 | -2/Protoforge | Installed UFD Drillbomb at designated target 22906 | -2/Protoforge | UFD reported confirmed Drillbomb installation 22970 | -2/Protoforge | UFD reported confirmed Drillbomb installation 23007 | -2/Protoforge | Spotted Executioner 23025 | -2/Protoforge | Spotted Executioner 23028 | -2/Protoforge | Found Unknown Device 23028 | -2/Protoforge | Identified Scrap Suit 23029 | -2/Protoforge | Destroyed Executioner 23034 | -2/Protoforge | Lost 5 allies 23050 | -2/Protoforge | Spotted Striker 23051 | -2/Protoforge | Spotted Striker 23055 | -2/Protoforge | Spotted Striker 23096 | -2/Protoforge | Spotted Executioner 23129 | -2/Protoforge | Lost 6 allies 23146 | -2/Protoforge | Spotted Executioner 23175 | -2/Protoforge | Spotted Striker 23179 | -2/Protoforge | Spotted Striker 23183 | -2/Protoforge | Destroyed Striker 23236 | -2/Protoforge | Lost 18 allies 23368 | -2/Protoforge | Destroyed self with Z-bomb Delivery System Last Messages --------------- 23364_ 02F09-D destroyed. 23364_ 02FCK-D destroyed. 23364_ Destroyed Unknown Device. 23364_ 02F98-D destroyed. 23365_ Slug penetrates Lugger 050. 23365_ Slug penetrates I-47 Archangel. 23366_ System corrupted: Hds. Centrium Leg rejected. 23366_ N-04 Retriever collects Rnf. Antimatter Reactor. 23366_ N-04 Retriever collects Unknown Protection. 23366_ Slug penetrates Lugger 050. 23366_ Acquired Hds. Centrium Leg. 23367_ Penetrated by Slug. 23368_ Slug penetrates 1C-JRK(E). 23368_ 1C-JRK(E) suffers critical hit (Destroy). 23368_ 1C-JRK(E) destroyed. 23368_ Destroyed Ovr. Coil Gun. 23368_ Destroyed Unknown Processor. Map ----- +----------------------------------------------------+ | " "" ???????????"""""""""""""" " | | " " " "???????????""""""""""""""" "% %"" | | "" ""??????????""""""""""""""" "" % "" | | " % "" """"????????""""""""""""""" %"" "%" | | "" " """"""???????"""""""""""""""" "" % | | "" """""""???????""""""""""""""" % " % % | | " """"""""??????"""""""""""""""% % % % | | """""""""?????""""""""""""""" % | | "" " " """""""""""????"""""""""""""" % | | " "" """"""""""""??""""""""""""""" | | % " """"""""""""""""""""""""""""" % | | "" """"" " """"""""""""""""""""""""""""" " "" | | "" % % """"""""""""""""""""""""""""" " " | | %% % " """"""""""""""""""""""""""" "" %% | | %%% % """"""""""""""""""""""""""" """ | | """""" %% %""""""""""""""""""""""""""" "" " | | ""% "% %" % """"""""""""""""""""""""" " " | | " %"% % """"""""""""""""""""""" "" " " | | " % ! """"""""""""""""""""" " " | | "% %"%!!! """"""""""""""""""" " " " | | " "" "s%!A* """"""""""""""""" "" " " | | " """ =is!! n""""""""""""""" "" "" " "" | | " " !!=*! s!= """""" "" "" | | " !=/%!/=[%!%s% "" "" "" """ | | " " """ [!!==%! [s [s "ss " "" | | " """ !*!=!*= EE @s A" " ss " | | "" ]]!!* s SS """" """s " "" "" | | " "" *!= " "=%"""SS % "% """""""""" ""%% % | | % " !%! " "" " % % | | " " """% */" " %""" " "" | | " " " " " " "" "" " "" | | "" % " % """" " "" "" | | "" " """"" ""% """ " " " | | ?" " "% " % """" | | ?? " "" % | | ??? " "" "" """"""" """ | | ??? % %" % " " " " """ | | ???? "% " """""""""" " " " | | ???? #######################################+++### | | ???????????????????????????????????????#"" " | | ?????????????????????????????????????###" | | ?????????????????????????????????????#"" | | ?????????????????????????????????????#"" | | ?????????????????????????????????????#"" | | ????????????????????????????????#????#"Y | | ?????????????????????????????????????#"" | | ?????????????????????????????????????#"" | | ?????????????????????????????????????#"" | | ?????????????????????????????????????###" | | ??????????????????????????#????????????#"" " | +----------------------------------------------------+ Best States ------------- Heat Dissipation 107 Energy Generation 55 Energy Capacity 740 Matter Stores 1050 Matter Capacity 1050 Sight Range 16 Robot Scan Range 16 Terrain Scan Range 16 Terrain Scan Density 1210 ECM Strength 2 Base Temperature (-) 200 EM Shielding 3 Armor Coverage 1275 Resistance: TH 50 Resistance: EM 20 Weapon Cycling 15 Melee Speed Boost 20 Phase Shifting 10 Evasion (%) 70 Targeting Accuracy 32 Melee Accuracy 8 Target Analysis 6 Core Analysis 11 Recoil Reduction 6 Particle Charging 50 Offensive Hacking 10 Authchip Count 1 Item Schematics ----------------- Electron Diverter | -2/Testing | Archive Quantum Shading Machine | -2/Testing | Archive Hds. Centrium Leg | -2/Testing | Archive Com. Linear Accelerator | -2/Testing | Archive Diametric Drive | -2/Testing | Archive Com. Tesla Bomb Launcher | -2/Testing | Archive Robot Schematics ------------------ R-10 Processor | -2/Testing | Archive R-06 Scavenger | -2/Testing | Archive H-88 Terminator | -2/Testing | Archive Fabricated ------------ H-88 Terminator | x2 | -2/Protoforge | Authchip Repaired ---------- Nothing Studied --------- None Alien Tech Used ----------------- Integrated Dissipator Phase Redirector Core Cannon Core Reset Matrix Transdimensional Reconstructor Subatomic Replicator Achievements -------------- All Kinds Of Bad News Anti-science Crusade Bob, First Of His Name Civilization 2243 Fancy Inventory Hulk Smash Link The Feds Super-what Now? Challenges ------------ None Game ------ Seed CryofiberMagneticSightfinder Manual? 0 Play Time 07:02:22 Cumulative 191.3 hours Start 2026.04.01 @ 23:17:34 End 2026.04.05 @ 00:31:44 Sessions 45 Manual Loads 0 Difficulty Rogue Special Mode None Game No. 74 Rogue 74 Adventurer 0 Explorer 0 Win Type - Total 5 Types 2/0/0/2/0/0/0/1/0/0 Lore% 50 Gallery% 57 Achievement% 51 Wizard Run 0 Options --------- Layout 2 ASCII 0 Keyboard 1 Movement Numpad Keybinds 0 Fullscreen 2 Font 24/Smallcaps Map View 50x44 Zoom Use 0% Tactical HUD 1 Map Filters NONE Filters NONE Steam 1 RUN: d2ad89f5-5438-451c-9b83-85c8c9dad10d